{"text_format":"1","workbook":"xlsx","n_sheets":5,"sheets":["Index","General Information","Agenda Items","Taxonomy","TextBlock"],"not_rendered":{"charts":0,"images":1,"macros":1,"external_links":0,"defined_names":1,"comments":0,"pivot_tables":0},"unopened":[],"bounds":{"document_bytes":16777216,"sheet_cells":100000,"rows_first":2000,"rows_last":500,"rows_between":2000,"halvings":0,"cell_chars":16384,"cell_head_chars":4096},"cells_cut":0,"cells_raw":0,"read":"whole","date_system":"1900"}

{"sheet":"Index","index":0,"n_rows":46,"n_cols":10,"rows_kept":46,"cut":false,"hidden":false,"merged":[[45,3,45,9],[39,3,39,9],[40,3,40,9],[41,3,41,9],[42,3,42,9],[43,3,43,9],[44,3,44,9],[36,3,36,9],[22,3,22,9],[25,3,25,9],[26,4,26,8],[27,4,27,8],[30,3,30,9],[31,3,31,9],[32,3,32,9],[33,3,33,9],[34,3,34,9],[35,3,35,9],[21,3,21,9],[5,4,5,8],[6,5,6,8],[7,5,7,8],[8,5,8,8],[10,5,10,8],[13,3,13,9],[14,3,14,9],[17,3,17,9],[18,3,18,9],[19,3,19,9],[20,3,20,9],[9,5,9,8]]}
[]
[]
[]
[]
[]
[null,null,null,null,"                                      XBRL Excel Utility"]
[null,null,null,null,"1.","Overview"]
[null,null,null,null,"2.","Before you begin"]
[null,null,null,null,"3.","Index"]
[null,null,null,null,"4.","Steps for Filing Prior Intimation of Board Meeting Report"]
[null,null,null,null,"5.","Fill up the data in excel utility"]
[]
[]
[null,null,null,"1. Overview"]
[null,null,null,"The excel utility can be used for creating the XBRL/XML file for efiling of Prior Intimation of Board Meeting Report"]
[]
[]
[null,null,null," 2.  Before you begin"]
[null,null,null,"1. The version of Microsoft Excel in your system should be Microsoft Office Excel 2007 and above."]
[null,null,null,"2. The system should have a file compression software to unzip excel utility file."]
[null,null,null,"3. Make sure that you have downloaded the latest Excel Utility."]
[null,null,null,"4. Make sure that you have downloaded the Chrome Browser to view report generated from Excel utility"]
[null,null,null,"5. Please enable the Macros (if disabled) as per instructions given in manual, so that all the functionalities of  Excel Utility works fine. Please first go through Enable Macro - Manual attached with zip file."]
[]
[]
[null,null,null,"3. Index "]
[null,null,null,1,"Basic information about the company and Meeting details",null,null,null,null,"General Information"]
[null,null,null,2,"Agenda Items for Board Meeting",null,null,null,null,"Agenda Items"]
[]
[]
[null,null,null,"4. Steps for Filing Prior Intimation of Board Meeting Report"]
[null,null,null,"I.  Fill up the data: Navigate to each field of every section in the sheet to provide applicable data in correct format.  (Formats will get reflected while filling data.)  \n   - Use paste special command to paste data from other sheet."]
[null,null,null,"II. Validating Sheets:  Click on the ''Validate\" button to ensure that the sheet has been properly filled and also data has been furnished in proper format. If there are some errors on the sheet, excel utility will prompt you about the same."]
[null,null,null,"III. Validate All Sheets:  Click on the ''Home\" button. And then click on \"Validate All Sheet\" button to ensure that all sheets has been properly filled and validated successfully. If there are some errors on the sheet, excel utility will prompt you about the same and stop validation at the same time. After correction, once again follow the same procedure to validate all sheets."]
[null,null,null,"Excel Utility will not allow you to generate XBRL/XML until you rectify all errors. "]
[null,null,null,"IV. Generate XML :   Excel Utility will not allow you to generate XBRL/XML unless successful validation of all sheet is completed. Now click on 'Generate XML'' to generate XBRL/XML file. \n    - Save the XBRL/XML file in your desired folder in local system."]
[null,null,null,"V. Generate Report :   Excel Utility will allow you to generate Report. Now click on 'Generate Report'' to generate html report.   \n     - Save the HTML Report file in your desired folder in local system.     \n     - To view HTML Report open \"Chrome Web Browser\" . \n     - To print report in PDF Format, Click on print button and save as PDF. "]
[]
[]
[null,null,null,"5. Fill up the data in excel utility"]
[null,null,null,"1. Cells with red asterisk mark indicate mandatory fields."]
[null,null,null,"2. If mandatory field is left empty, then Utility will not allow you to proceed further for generating XML."]
[null,null,null,"3. You are not allowed to enter data in the Grey Cells."]
[null,null,null,"4. If fields are not applicable to your company then leave it blank. Do not insert Zero unless it is a mandatory field."]
[null,null,null,"5. Data provided must be in correct format, otherwise Utility will not allow you to proceed further for generating XML."]
[null,null,null,"6. Select data from \"Dropdown list\" wherever applicable. "]

{"sheet":"General Information","index":1,"n_rows":730,"n_cols":26,"rows_kept":730,"cut":false,"hidden":false,"merged":[[7,4,7,5]]}
[null,null,null,null,null,null,null,null,null,null,null,null,null,"YES","NO",null,null,null,null,{"$f":"COUNT(W1:W730)-COUNT(Z1:Z18)","v":12},{"$f":"+U2-1","v":"2023-01-26"},{"$f":"WEEKDAY(U1)","v":5},{"$f":"IFERROR(IF(V1=7,\"\",IF(V1=1,\"\",IF(AND(U1>VALUE($F$29),U1<VALUE($F$16)),U1,\"\"))),\"\")","v":""},"2022-01-26",{"$f":"WEEKDAY(X1)","v":4},{"$f":"IFERROR(IF(Y1=7,\"\",IF(Y1=1,\"\",IF(AND(X1>VALUE($F$29),X1<VALUE($F$16)),X1, \"\"))),\"\")","v":""}]
[null,null,null,null,null,null,null,null,null,null,null,null,null,"New","Re-schedule (postpone or prepone)","Cancellation",null,null,null,null,"2023-01-27",{"$f":"WEEKDAY(U2)","v":6},{"$f":"IFERROR(IF(V2=7,\"\",IF(V2=1,\"\",IF(AND(U2>VALUE($F$29),U2<VALUE($F$16)),U2,\"\"))),\"\")","v":""},"2022-03-01",{"$f":"WEEKDAY(X2)","v":3},{"$f":"IFERROR(IF(Y2=7,\"\",IF(Y2=1,\"\",IF(AND(X2>VALUE($F$29),X2<VALUE($F$16)),X2, \"\"))),\"\")","v":""}]
[null,null,null,null,null,null,null,null,null,null,null,null,null,null,null,null,null,null,null,null,"2023-01-28",7,"","2022-03-18",6,""]
[null,null,null,null,null,null,null,null,null,null,null,null,null,null,null,null,null,null,null,null,"2023-01-29",1,"","2022-04-10",1,""]
[null,null,null,null,null,null,null,null,null,null,null,null,null,null,null,null,null,null,null,null,"2023-01-30",2,"","2022-04-14",5,""]
[null,null,null,null,null,null,null,null,null,null,null,null,null,null,null,null,null,null,null,null,"2023-01-31",3,"","2022-04-15",6,""]
[null,null,null,null,null,null,null,null,null,null,null,null,null,null,null,null,null,null,null,null,"2023-02-01",4,"","2022-05-01",1,""]
[null,null,null,null,"General Information",null,null,null,null,null,null,null,null,null,null,null,null,null,null,null,"2023-02-02",5,"","2022-05-03",3,""]
[null,null,null,null,"NSE Symbol*","0",null,null,null,null,null,"NSESymbol",null,null,null,null,null,null,null,null,"2023-02-03",6,"","2022-07-10",1,""]
[null,null,null,null,"Name of the Company*","CITYMAN LIMITED",null,null,null,null,null,"NameOfTheCompany",null,null,null,null,null,null,null,null,"2023-02-04",7,"","2022-08-09",3,""]
[null,null,null,null,"BSE Scrip Code*","521210",null,null,null,null,null,"ScripCode",null,null,null,null,null,{"$f":"IF(T21=\"\",\"\",1)","v":""},{"$f":"IFERROR(SMALL($R$11:$R$18,ROWS(S$11:S11)),\"\")","v":""},{"$f":"IFERROR(INDEX($R$21:$T$28,S11,3),\"\")","v":""},"2023-02-05",1,"","2022-08-15",2,""]
[null,null,null,null,"MSEI Symbol*","NOTLISTED",null,null,null,null,null,"MSEISymbol",null,null,null,null,null,{"$f":"IF(T22=\"\",\"\",2)","v":""},{"$f":"IFERROR(SMALL($R$11:$R$18,ROWS(S$11:S12)),\"\")","v":""},{"$f":"IFERROR(INDEX($R$21:$T$28,S12,3),\"\")","v":""},"2023-02-06",2,"","2022-08-31",4,""]
[null,null,null,null,"Whether Company is SME*","YES",null,null,null,null,null,"WhetherCompanyIsSME",null,null,null,null,null,{"$f":"IF(T23=\"\",\"\",3)","v":""},{"$f":"IFERROR(SMALL($R$11:$R$18,ROWS(S$11:S13)),\"\")","v":""},"","2023-02-07",3,"","2022-10-02",1,""]
[null,null,null,null,"ISIN*","INE117C01010",null,null,null,null,null,"ISIN",null,null,null,null,null,{"$f":"IF(T24=\"\",\"\",4)","v":""},{"$f":"IFERROR(SMALL($R$11:$R$18,ROWS(S$11:S14)),\"\")","v":""},"","2023-02-08",4,"","2022-10-05",4,""]
[null,null,null,null,"Type of Intimation*","New",null,null,null,null,null,"TypeOfIntimation",null,null,null,null,null,{"$f":"IF(T25=\"\",\"\",5)","v":""},{"$f":"IFERROR(SMALL($R$11:$R$18,ROWS(S$11:S15)),\"\")","v":""},"","2023-02-09",5,"","2022-10-24",2,""]
[null,null,null,null,"Proposed Meeting Date","13-02-2024",null,null,null,null,null,"DateOfProposedMeeting",null,null,null,null,null,{"$f":"IF(T26=\"\",\"\",6)","v":""},{"$f":"IFERROR(SMALL($R$11:$R$18,ROWS(S$11:S16)),\"\")","v":""},"","2023-02-10",6,"","2022-10-26",4,""]
[null,null,null,null,"Original Meeting Date",null,null,null,null,null,null,"DateOfOriginalMeeting",null,null,null,null,null,{"$f":"IF(T27=\"\",\"\",7)","v":""},{"$f":"IFERROR(SMALL($R$11:$R$18,ROWS(S$11:S17)),\"\")","v":""},"","2023-02-11",7,"","2022-11-08",3,""]
[null,null,null,null,"Whether trading window is closed*","YES",null,null,null,null,null,"WhetherTradingWindowIsClosed",null,null,null,null,null,{"$f":"IF(T28=\"\",\"\",8)","v":""},{"$f":"IFERROR(SMALL($R$11:$R$18,ROWS(S$11:S18)),\"\")","v":""},"","2023-02-12",1,"","2022-12-25",1,""]
[null,null,null,null,"Trading Window Start date","01-01-2024",null,null,null,null,null,"StartDateOfTradingWindow",null,null,null,null,null,null,null,null,"2023-02-13",2,""]
[null,null,null,null,"Trading Window End date","15-02-2024",null,null,null,null,null,"EndDateOfTradingWindow",null,null,null,null,null,null,null,null,{"$f":"+U21-1","v":"2023-02-14"},3,""]
[null,null,null,null,"Short Notice",{"$f":"IFERROR(IF($F$16=\"\",\"\",IF(T11=\"\",\"\",T11)),\"\")","v":""},null,null,null,null,null,"ShortNotice",null,"Alteration of date of payment of interest or redemption amount",{"$f":"IFERROR(MATCH(N21,'Agenda Items'!$G$12:$G$13,0),\"\")","v":""},"29(3)(b)",{"$f":"IF(O21=\"\",\"\",IF($T$1<11,11-$T$1,\"\"))","v":""},{"$f":"IFERROR(SMALL($O$21:$O$28,ROWS(R$21:R21)),\"\")","v":1},"less than 11 working days",{"$f":"IF(R21<>\"\",IF(VLOOKUP(R21,$O$21:$Q$28,3,0)=\"\",\"\",VLOOKUP(R21,$O$21:$P$28,2,0)&\" - \"&VLOOKUP(R21,$O$21:$Q$28,3,0)),\"\")","v":""},"2023-02-15",4,""]
[null,null,null,null,null,{"$f":"IFERROR(IF($F$16=\"\",\"\",IF(T12=\"\",\"\",T12)),\"\")","v":""},null,null,null,null,null,"ShortNotice1",null,"Alteration of form or nature or rights of securities",{"$f":"IFERROR(MATCH(N22,'Agenda Items'!$G$12:$G$13,0),\"\")","v":""},"29(3)(a)",{"$f":"IF(O22=\"\",\"\",IF($T$1<11,11-$T$1,\"\"))","v":""},{"$f":"IFERROR(SMALL($O$21:$O$28,ROWS(R$21:R22)),\"\")","v":""},"less than 11 working days",{"$f":"IF(R22<>\"\",IF(VLOOKUP(R22,$O$21:$Q$28,3,0)=\"\",\"\",VLOOKUP(R22,$O$21:$P$28,2,0)&\" - \"&VLOOKUP(R22,$O$21:$Q$28,3,0)),\"\")","v":""},"2023-02-16",5,""]
[null,null,null,null,null,"",null,null,null,null,null,"ShortNotice2",null,"Bonus",{"$f":"IFERROR(MATCH(N23,'Agenda Items'!$G$12:$G$13,0),\"\")","v":""},"29(1)(f)",{"$f":"IF(O23=\"\",\"\",IF($T$1<2,2-$T$1,\"\"))","v":""},{"$f":"IFERROR(SMALL($O$21:$O$28,ROWS(R$21:R23)),\"\")","v":""},"less than 2 working days","","2023-02-17",6,""]
[null,null,null,null,null,"",null,null,null,null,null,"ShortNotice3",null,"Buyback",{"$f":"IFERROR(MATCH(N24,'Agenda Items'!$G$12:$G$13,0),\"\")","v":""},"29(1)(b)",{"$f":"IF(O24=\"\",\"\",IF($T$1<2,2-$T$1,\"\"))","v":""},{"$f":"IFERROR(SMALL($O$21:$O$28,ROWS(R$21:R24)),\"\")","v":""},"less than 2 working days","","2023-02-18",7,""]
[null,null,null,null,null,"",null,null,null,null,null,"ShortNotice4",null,"Dividend",{"$f":"IFERROR(MATCH(N25,'Agenda Items'!$G$12:$G$13,0),\"\")","v":""},"29(1)(e)",{"$f":"IF(O25=\"\",\"\",IF($T$1<2,2-$T$1,\"\"))","v":""},{"$f":"IFERROR(SMALL($O$21:$O$28,ROWS(R$21:R25)),\"\")","v":""},"less than 2 working days","","2023-02-19",1,""]
[null,null,null,null,null,"",null,null,null,null,null,"ShortNotice5",null,"Financial results",{"$f":"IFERROR(MATCH(N26,'Agenda Items'!$G$12:$G$13,0),\"\")","v":1},"29(1)(a)",{"$f":"IFERROR(IF(O26=\"\",\"\",IF((F16-F29)-1<5,IF((F16-F29)<1,5,5-(F16-F29)+1),\"\")),\"\")","v":""},{"$f":"IFERROR(SMALL($O$21:$O$28,ROWS(R$21:R26)),\"\")","v":""},"less than 5 Calander days","","2023-02-20",2,""]
[null,null,null,null,null,"",null,null,null,null,null,"ShortNotice6",null,"Fund raising",{"$f":"IFERROR(MATCH(N27,'Agenda Items'!$G$12:$G$13,0),\"\")","v":""},"29(1)(d)",{"$f":"IF(O27=\"\",\"\",IF($T$1<2,2-$T$1,\"\"))","v":""},{"$f":"IFERROR(SMALL($O$21:$O$28,ROWS(R$21:R27)),\"\")","v":""},"less than 2 working days","","2023-02-21",3,""]
[null,null,null,null,null,"",null,null,null,null,null,"ShortNotice7",null,"Voluntary delisting",{"$f":"IFERROR(MATCH(N28,'Agenda Items'!$G$12:$G$13,0),\"\")","v":""},"29(1)(c)",{"$f":"IF(O28=\"\",\"\",IF($T$1<2,2-$T$1,\"\"))","v":""},{"$f":"IFERROR(SMALL($O$21:$O$28,ROWS(R$21:R28)),\"\")","v":""},"less than 2 working days","",{"$f":"+U29-1","v":"2023-02-22"},4,""]
[null,null,null,null,"Date of Report*",{"$f":"TODAY()","v":"2024-01-25"},null,null,null,null,null,"DateOfReport",null,null,null,null,null,null,null,null,"2023-02-23",5,""]
[null,null,null,null,"Remarks for Exchange (not for Website Dissemination)","NA",null,null,null,null,null,"RemarksForExchangeNotForWebsiteDissemination",null,null,null,null,null,null,null,null,"2023-02-24",6,""]
[null,null,null,null,null,null,null,null,null,null,null,null,null,null,null,null,null,null,null,null,"2023-02-25",7,""]
[null,null,null,null,null,null,null,null,null,null,null,null,null,null,null,null,null,null,null,null,"2023-02-26",1,""]
[null,null,null,null,null,null,null,null,null,null,null,null,null,null,null,null,null,null,null,null,"2023-02-27",2,""]
[null,null,null,null,null,null,null,null,null,null,null,null,null,null,null,null,null,null,null,null,"2023-02-28",3,""]
[null,null,null,null,null,null,null,null,null,null,null,null,null,null,null,null,null,null,null,null,"2023-03-01",4,""]
[null,null,null,null,null,null,null,null,null,null,null,null,null,null,null,null,null,null,null,null,"2023-03-02",5,""]
[null,null,null,null,null,null,null,null,null,null,null,null,null,null,null,null,null,null,null,null,"2023-03-03",6,""]
[null,null,null,null,null,null,null,null,null,null,null,null,null,null,null,null,null,null,null,null,"2023-03-04",7,""]
[null,null,null,null,null,null,null,null,null,null,null,null,null,null,null,null,null,null,null,null,"2023-03-05",1,""]
[null,null,null,null,null,null,null,null,null,null,null,null,null,null,null,null,null,null,null,null,"2023-03-06",2,""]
[null,null,null,null,null,null,null,null,null,null,null,null,null,null,null,null,null,null,null,null,"2023-03-07",3,""]
[null,null,null,null,null,null,null,null,null,null,null,null,null,null,null,null,null,null,null,null,"2023-03-08",4,""]
[null,null,null,null,null,null,null,null,null,null,null,null,null,null,null,null,null,null,null,null,"2023-03-09",5,""]
[null,null,null,null,null,null,null,null,null,null,null,null,null,null,null,null,null,null,null,null,"2023-03-10",6,""]
[null,null,null,null,null,null,null,null,null,null,null,null,null,null,null,null,null,null,null,null,"2023-03-11",7,""]
[null,null,null,null,null,null,null,null,null,null,null,null,null,null,null,null,null,null,null,null,"2023-03-12",1,""]
[null,null,null,null,null,null,null,null,null,null,null,null,null,null,null,null,null,null,null,null,"2023-03-13",2,""]
[null,null,null,null,null,null,null,null,null,null,null,null,null,null,null,null,null,null,null,null,"2023-03-14",3,""]
[null,null,null,null,null,null,null,null,null,null,null,null,null,null,null,null,null,null,null,null,"2023-03-15",4,""]
[null,null,null,null,null,null,null,null,null,null,null,null,null,null,null,null,null,null,null,null,"2023-03-16",5,""]
[null,null,null,null,null,null,null,null,null,null,null,null,null,null,null,null,null,null,null,null,"2023-03-17",6,""]
[null,null,null,null,null,null,null,null,null,null,null,null,null,null,null,null,null,null,null,null,"2023-03-18",7,""]
[null,null,null,null,null,null,null,null,null,null,null,null,null,null,null,null,null,null,null,null,"2023-03-19",1,""]
[null,null,null,null,null,null,null,null,null,null,null,null,null,null,null,null,null,null,null,null,"2023-03-20",2,""]
[null,null,null,null,null,null,null,null,null,null,null,null,null,null,null,null,null,null,null,null,"2023-03-21",3,""]
[null,null,null,null,null,null,null,null,null,null,null,null,null,null,null,null,null,null,null,null,"2023-03-22",4,""]
[null,null,null,null,null,null,null,null,null,null,null,null,null,null,null,null,null,null,null,null,"2023-03-23",5,""]
[null,null,null,null,null,null,null,null,null,null,null,null,null,null,null,null,null,null,null,null,"2023-03-24",6,""]
[null,null,null,null,null,null,null,null,null,null,null,null,null,null,null,null,null,null,null,null,"2023-03-25",7,""]
[null,null,null,null,null,null,null,null,null,null,null,null,null,null,null,null,null,null,null,null,"2023-03-26",1,""]
[null,null,null,null,null,null,null,null,null,null,null,null,null,null,null,null,null,null,null,null,"2023-03-27",2,""]
[null,null,null,null,null,null,null,null,null,null,null,null,null,null,null,null,null,null,null,null,"2023-03-28",3,""]
[null,null,null,null,null,null,null,null,null,null,null,null,null,null,null,null,null,null,null,null,"2023-03-29",4,""]
[null,null,null,null,null,null,null,null,null,null,null,null,null,null,null,null,null,null,null,null,"2023-03-30",5,""]
[null,null,null,null,null,null,null,null,null,null,null,null,null,null,null,null,null,null,null,null,{"$f":"+U66-1","v":"2023-03-31"},6,""]
[null,null,null,null,null,null,null,null,null,null,null,null,null,null,null,null,null,null,null,null,"2023-04-01",{"$f":"WEEKDAY(U66)","v":7},{"$f":"IFERROR(IF(V66=7,\"\",IF(V66=1,\"\",IF(AND(U66>VALUE($F$29),U66<VALUE($F$16)),U66,\"\"))),\"\")","v":""}]
[null,null,null,null,null,null,null,null,null,null,null,null,null,null,null,null,null,null,null,null,"2023-04-02",1,""]
[null,null,null,null,null,null,null,null,null,null,null,null,null,null,null,null,null,null,null,null,"2023-04-03",2,""]
[null,null,null,null,null,null,null,null,null,null,null,null,null,null,null,null,null,null,null,null,"2023-04-04",3,""]
[null,null,null,null,null,null,null,null,null,null,null,null,null,null,null,null,null,null,null,null,"2023-04-05",4,""]
[null,null,null,null,null,null,null,null,null,null,null,null,null,null,null,null,null,null,null,null,"2023-04-06",5,""]
[null,null,null,null,null,null,null,null,null,null,null,null,null,null,null,null,null,null,null,null,"2023-04-07",6,""]
[null,null,null,null,null,null,null,null,null,null,null,null,null,null,null,null,null,null,null,null,"2023-04-08",7,""]
[null,null,null,null,null,null,null,null,null,null,null,null,null,null,null,null,null,null,null,null,"2023-04-09",1,""]
[null,null,null,null,null,null,null,null,null,null,null,null,null,null,null,null,null,null,null,null,"2023-04-10",2,""]
[null,null,null,null,null,null,null,null,null,null,null,null,null,null,null,null,null,null,null,null,"2023-04-11",3,""]
[null,null,null,null,null,null,null,null,null,null,null,null,null,null,null,null,null,null,null,null,"2023-04-12",4,""]
[null,null,null,null,null,null,null,null,null,null,null,null,null,null,null,null,null,null,null,null,"2023-04-13",5,""]
[null,null,null,null,null,null,null,null,null,null,null,null,null,null,null,null,null,null,null,null,"2023-04-14",6,""]
[null,null,null,null,null,null,null,null,null,null,null,null,null,null,null,null,null,null,null,null,"2023-04-15",7,""]
[null,null,null,null,null,null,null,null,null,null,null,null,null,null,null,null,null,null,null,null,"2023-04-16",1,""]
[null,null,null,null,null,null,null,null,null,null,null,null,null,null,null,null,null,null,null,null,"2023-04-17",2,""]
[null,null,null,null,null,null,null,null,null,null,null,null,null,null,null,null,null,null,null,null,"2023-04-18",3,""]
[null,null,null,null,null,null,null,null,null,null,null,null,null,null,null,null,null,null,null,null,"2023-04-19",4,""]
[null,null,null,null,null,null,null,null,null,null,null,null,null,null,null,null,null,null,null,null,"2023-04-20",5,""]
[null,null,null,null,null,null,null,null,null,null,null,null,null,null,null,null,null,null,null,null,"2023-04-21",6,""]
[null,null,null,null,null,null,null,null,null,null,null,null,null,null,null,null,null,null,null,null,"2023-04-22",7,""]
[null,null,null,null,null,null,null,null,null,null,null,null,null,null,null,null,null,null,null,null,"2023-04-23",1,""]
[null,null,null,null,null,null,null,null,null,null,null,null,null,null,null,null,null,null,null,null,"2023-04-24",2,""]
[null,null,null,null,null,null,null,null,null,null,null,null,null,null,null,null,null,null,null,null,"2023-04-25",3,""]
[null,null,null,null,null,null,null,null,null,null,null,null,null,null,null,null,null,null,null,null,"2023-04-26",4,""]
[null,null,null,null,null,null,null,null,null,null,null,null,null,null,null,null,null,null,null,null,"2023-04-27",5,""]
[null,null,null,null,null,null,null,null,null,null,null,null,null,null,null,null,null,null,null,null,"2023-04-28",6,""]
[null,null,null,null,null,null,null,null,null,null,null,null,null,null,null,null,null,null,null,null,"2023-04-29",7,""]
[null,null,null,null,null,null,null,null,null,null,null,null,null,null,null,null,null,null,null,null,"2023-04-30",1,""]
[null,null,null,null,null,null,null,null,null,null,null,null,null,null,null,null,null,null,null,null,"2023-05-01",2,""]
[null,null,null,null,null,null,null,null,null,null,null,null,null,null,null,null,null,null,null,null,"2023-05-02",3,""]
[null,null,null,null,null,null,null,null,null,null,null,null,null,null,null,null,null,null,null,null,"2023-05-03",4,""]
[null,null,null,null,null,null,null,null,null,null,null,null,null,null,null,null,null,null,null,null,"2023-05-04",5,""]
[null,null,null,null,null,null,null,null,null,null,null,null,null,null,null,null,null,null,null,null,"2023-05-05",6,""]
[null,null,null,null,null,null,null,null,null,null,null,null,null,null,null,null,null,null,null,null,"2023-05-06",7,""]
[null,null,null,null,null,null,null,null,null,null,null,null,null,null,null,null,null,null,null,null,"2023-05-07",1,""]
[null,null,null,null,null,null,null,null,null,null,null,null,null,null,null,null,null,null,null,null,"2023-05-08",2,""]
[null,null,null,null,null,null,null,null,null,null,null,null,null,null,null,null,null,null,null,null,"2023-05-09",3,""]
[null,null,null,null,null,null,null,null,null,null,null,null,null,null,null,null,null,null,null,null,"2023-05-10",4,""]
[null,null,null,null,null,null,null,null,null,null,null,null,null,null,null,null,null,null,null,null,"2023-05-11",5,""]
[null,null,null,null,null,null,null,null,null,null,null,null,null,null,null,null,null,null,null,null,"2023-05-12",6,""]
[null,null,null,null,null,null,null,null,null,null,null,null,null,null,null,null,null,null,null,null,"2023-05-13",7,""]
[null,null,null,null,null,null,null,null,null,null,null,null,null,null,null,null,null,null,null,null,"2023-05-14",1,""]
[null,null,null,null,null,null,null,null,null,null,null,null,null,null,null,null,null,null,null,null,"2023-05-15",2,""]
[null,null,null,null,null,null,null,null,null,null,null,null,null,null,null,null,null,null,null,null,"2023-05-16",3,""]
[null,null,null,null,null,null,null,null,null,null,null,null,null,null,null,null,null,null,null,null,"2023-05-17",4,""]
[null,null,null,null,null,null,null,null,null,null,null,null,null,null,null,null,null,null,null,null,"2023-05-18",5,""]
[null,null,null,null,null,null,null,null,null,null,null,null,null,null,null,null,null,null,null,null,"2023-05-19",6,""]
[null,null,null,null,null,null,null,null,null,null,null,null,null,null,null,null,null,null,null,null,"2023-05-20",7,""]
[null,null,null,null,null,null,null,null,null,null,null,null,null,null,null,null,null,null,null,null,"2023-05-21",1,""]
[null,null,null,null,null,null,null,null,null,null,null,null,null,null,null,null,null,null,null,null,"2023-05-22",2,""]
[null,null,null,null,null,null,null,null,null,null,null,null,null,null,null,null,null,null,null,null,"2023-05-23",3,""]
[null,null,null,null,null,null,null,null,null,null,null,null,null,null,null,null,null,null,null,null,"2023-05-24",4,""]
[null,null,null,null,null,null,null,null,null,null,null,null,null,null,null,null,null,null,null,null,"2023-05-25",5,""]
[null,null,null,null,null,null,null,null,null,null,null,null,null,null,null,null,null,null,null,null,"2023-05-26",6,""]
[null,null,null,null,null,null,null,null,null,null,null,null,null,null,null,null,null,null,null,null,"2023-05-27",7,""]
[null,null,null,null,null,null,null,null,null,null,null,null,null,null,null,null,null,null,null,null,"2023-05-28",1,""]
[null,null,null,null,null,null,null,null,null,null,null,null,null,null,null,null,null,null,null,null,"2023-05-29",2,""]
[null,null,null,null,null,null,null,null,null,null,null,null,null,null,null,null,null,null,null,null,"2023-05-30",3,""]
[null,null,null,null,null,null,null,null,null,null,null,null,null,null,null,null,null,null,null,null,"2023-05-31",4,""]
[null,null,null,null,null,null,null,null,null,null,null,null,null,null,null,null,null,null,null,null,"2023-06-01",5,""]
[null,null,null,null,null,null,null,null,null,null,null,null,null,null,null,null,null,null,null,null,"2023-06-02",6,""]
[null,null,null,null,null,null,null,null,null,null,null,null,null,null,null,null,null,null,null,null,{"$f":"+U130-1","v":"2023-06-03"},7,""]
[null,null,null,null,null,null,null,null,null,null,null,null,null,null,null,null,null,null,null,null,"2023-06-04",{"$f":"WEEKDAY(U130)","v":1},{"$f":"IFERROR(IF(V130=7,\"\",IF(V130=1,\"\",IF(AND(U130>VALUE($F$29),U130<VALUE($F$16)),U130,\"\"))),\"\")","v":""}]
[null,null,null,null,null,null,null,null,null,null,null,null,null,null,null,null,null,null,null,null,"2023-06-05",2,""]
[null,null,null,null,null,null,null,null,null,null,null,null,null,null,null,null,null,null,null,null,"2023-06-06",3,""]
[null,null,null,null,null,null,null,null,null,null,null,null,null,null,null,null,null,null,null,null,"2023-06-07",4,""]
[null,null,null,null,null,null,null,null,null,null,null,null,null,null,null,null,null,null,null,null,"2023-06-08",5,""]
[null,null,null,null,null,null,null,null,null,null,null,null,null,null,null,null,null,null,null,null,"2023-06-09",6,""]
[null,null,null,null,null,null,null,null,null,null,null,null,null,null,null,null,null,null,null,null,"2023-06-10",7,""]
[null,null,null,null,null,null,null,null,null,null,null,null,null,null,null,null,null,null,null,null,"2023-06-11",1,""]
[null,null,null,null,null,null,null,null,null,null,null,null,null,null,null,null,null,null,null,null,"2023-06-12",2,""]
[null,null,null,null,null,null,null,null,null,null,null,null,null,null,null,null,null,null,null,null,"2023-06-13",3,""]
[null,null,null,null,null,null,null,null,null,null,null,null,null,null,null,null,null,null,null,null,"2023-06-14",4,""]
[null,null,null,null,null,null,null,null,null,null,null,null,null,null,null,null,null,null,null,null,"2023-06-15",5,""]
[null,null,null,null,null,null,null,null,null,null,null,null,null,null,null,null,null,null,null,null,"2023-06-16",6,""]
[null,null,null,null,null,null,null,null,null,null,null,null,null,null,null,null,null,null,null,null,"2023-06-17",7,""]
[null,null,null,null,null,null,null,null,null,null,null,null,null,null,null,null,null,null,null,null,"2023-06-18",1,""]
[null,null,null,null,null,null,null,null,null,null,null,null,null,null,null,null,null,null,null,null,"2023-06-19",2,""]
[null,null,null,null,null,null,null,null,null,null,null,null,null,null,null,null,null,null,null,null,"2023-06-20",3,""]
[null,null,null,null,null,null,null,null,null,null,null,null,null,null,null,null,null,null,null,null,"2023-06-21",4,""]
[null,null,null,null,null,null,null,null,null,null,null,null,null,null,null,null,null,null,null,null,"2023-06-22",5,""]
[null,null,null,null,null,null,null,null,null,null,null,null,null,null,null,null,null,null,null,null,"2023-06-23",6,""]
[null,null,null,null,null,null,null,null,null,null,null,null,null,null,null,null,null,null,null,null,"2023-06-24",7,""]
[null,null,null,null,null,null,null,null,null,null,null,null,null,null,null,null,null,null,null,null,"2023-06-25",1,""]
[null,null,null,null,null,null,null,null,null,null,null,null,null,null,null,null,null,null,null,null,"2023-06-26",2,""]
[null,null,null,null,null,null,null,null,null,null,null,null,null,null,null,null,null,null,null,null,"2023-06-27",3,""]
[null,null,null,null,null,null,null,null,null,null,null,null,null,null,null,null,null,null,null,null,"2023-06-28",4,""]
[null,null,null,null,null,null,null,null,null,null,null,null,null,null,null,null,null,null,null,null,"2023-06-29",5,""]
[null,null,null,null,null,null,null,null,null,null,null,null,null,null,null,null,null,null,null,null,"2023-06-30",6,""]
[null,null,null,null,null,null,null,null,null,null,null,null,null,null,null,null,null,null,null,null,"2023-07-01",7,""]
[null,null,null,null,null,null,null,null,null,null,null,null,null,null,null,null,null,null,null,null,"2023-07-02",1,""]
[null,null,null,null,null,null,null,null,null,null,null,null,null,null,null,null,null,null,null,null,"2023-07-03",2,""]
[null,null,null,null,null,null,null,null,null,null,null,null,null,null,null,null,null,null,null,null,"2023-07-04",3,""]
[null,null,null,null,null,null,null,null,null,null,null,null,null,null,null,null,null,null,null,null,"2023-07-05",4,""]
[null,null,null,null,null,null,null,null,null,null,null,null,null,null,null,null,null,null,null,null,"2023-07-06",5,""]
[null,null,null,null,null,null,null,null,null,null,null,null,null,null,null,null,null,null,null,null,"2023-07-07",6,""]
[null,null,null,null,null,null,null,null,null,null,null,null,null,null,null,null,null,null,null,null,"2023-07-08",7,""]
[null,null,null,null,null,null,null,null,null,null,null,null,null,null,null,null,null,null,null,null,"2023-07-09",1,""]
[null,null,null,null,null,null,null,null,null,null,null,null,null,null,null,null,null,null,null,null,"2023-07-10",2,""]
[null,null,null,null,null,null,null,null,null,null,null,null,null,null,null,null,null,null,null,null,"2023-07-11",3,""]
[null,null,null,null,null,null,null,null,null,null,null,null,null,null,null,null,null,null,null,null,"2023-07-12",4,""]
[null,null,null,null,null,null,null,null,null,null,null,null,null,null,null,null,null,null,null,null,"2023-07-13",5,""]
[null,null,null,null,null,null,null,null,null,null,null,null,null,null,null,null,null,null,null,null,"2023-07-14",6,""]
[null,null,null,null,null,null,null,null,null,null,null,null,null,null,null,null,null,null,null,null,"2023-07-15",7,""]
[null,null,null,null,null,null,null,null,null,null,null,null,null,null,null,null,null,null,null,null,"2023-07-16",1,""]
[null,null,null,null,null,null,null,null,null,null,null,null,null,null,null,null,null,null,null,null,"2023-07-17",2,""]
[null,null,null,null,null,null,null,null,null,null,null,null,null,null,null,null,null,null,null,null,"2023-07-18",3,""]
[null,null,null,null,null,null,null,null,null,null,null,null,null,null,null,null,null,null,null,null,"2023-07-19",4,""]
[null,null,null,null,null,null,null,null,null,null,null,null,null,null,null,null,null,null,null,null,"2023-07-20",5,""]
[null,null,null,null,null,null,null,null,null,null,null,null,null,null,null,null,null,null,null,null,"2023-07-21",6,""]
[null,null,null,null,null,null,null,null,null,null,null,null,null,null,null,null,null,null,null,null,"2023-07-22",7,""]
[null,null,null,null,null,null,null,null,null,null,null,null,null,null,null,null,null,null,null,null,"2023-07-23",1,""]
[null,null,null,null,null,null,null,null,null,null,null,null,null,null,null,null,null,null,null,null,"2023-07-24",2,""]
[null,null,null,null,null,null,null,null,null,null,null,null,null,null,null,null,null,null,null,null,"2023-07-25",3,""]
[null,null,null,null,null,null,null,null,null,null,null,null,null,null,null,null,null,null,null,null,"2023-07-26",4,""]
[null,null,null,null,null,null,null,null,null,null,null,null,null,null,null,null,null,null,null,null,"2023-07-27",5,""]
[null,null,null,null,null,null,null,null,null,null,null,null,null,null,null,null,null,null,null,null,"2023-07-28",6,""]
[null,null,null,null,null,null,null,null,null,null,null,null,null,null,null,null,null,null,null,null,"2023-07-29",7,""]
[null,null,null,null,null,null,null,null,null,null,null,null,null,null,null,null,null,null,null,null,"2023-07-30",1,""]
[null,null,null,null,null,null,null,null,null,null,null,null,null,null,null,null,null,null,null,null,"2023-07-31",2,""]
[null,null,null,null,null,null,null,null,null,null,null,null,null,null,null,null,null,null,null,null,"2023-08-01",3,""]
[null,null,null,null,null,null,null,null,null,null,null,null,null,null,null,null,null,null,null,null,"2023-08-02",4,""]
[null,null,null,null,null,null,null,null,null,null,null,null,null,null,null,null,null,null,null,null,"2023-08-03",5,""]
[null,null,null,null,null,null,null,null,null,null,null,null,null,null,null,null,null,null,null,null,"2023-08-04",6,""]
[null,null,null,null,null,null,null,null,null,null,null,null,null,null,null,null,null,null,null,null,"2023-08-05",7,""]
[null,null,null,null,null,null,null,null,null,null,null,null,null,null,null,null,null,null,null,null,{"$f":"+U194-1","v":"2023-08-06"},1,""]
[null,null,null,null,null,null,null,null,null,null,null,null,null,null,null,null,null,null,null,null,"2023-08-07",{"$f":"WEEKDAY(U194)","v":2},{"$f":"IFERROR(IF(V194=7,\"\",IF(V194=1,\"\",IF(AND(U194>VALUE($F$29),U194<VALUE($F$16)),U194,\"\"))),\"\")","v":""}]
[null,null,null,null,null,null,null,null,null,null,null,null,null,null,null,null,null,null,null,null,"2023-08-08",3,""]
[null,null,null,null,null,null,null,null,null,null,null,null,null,null,null,null,null,null,null,null,"2023-08-09",4,""]
[null,null,null,null,null,null,null,null,null,null,null,null,null,null,null,null,null,null,null,null,"2023-08-10",5,""]
[null,null,null,null,null,null,null,null,null,null,null,null,null,null,null,null,null,null,null,null,"2023-08-11",6,""]
[null,null,null,null,null,null,null,null,null,null,null,null,null,null,null,null,null,null,null,null,"2023-08-12",7,""]
[null,null,null,null,null,null,null,null,null,null,null,null,null,null,null,null,null,null,null,null,"2023-08-13",1,""]
[null,null,null,null,null,null,null,null,null,null,null,null,null,null,null,null,null,null,null,null,"2023-08-14",2,""]
[null,null,null,null,null,null,null,null,null,null,null,null,null,null,null,null,null,null,null,null,"2023-08-15",3,""]
[null,null,null,null,null,null,null,null,null,null,null,null,null,null,null,null,null,null,null,null,"2023-08-16",4,""]
[null,null,null,null,null,null,null,null,null,null,null,null,null,null,null,null,null,null,null,null,"2023-08-17",5,""]
[null,null,null,null,null,null,null,null,null,null,null,null,null,null,null,null,null,null,null,null,"2023-08-18",6,""]
[null,null,null,null,null,null,null,null,null,null,null,null,null,null,null,null,null,null,null,null,"2023-08-19",7,""]
[null,null,null,null,null,null,null,null,null,null,null,null,null,null,null,null,null,null,null,null,"2023-08-20",1,""]
[null,null,null,null,null,null,null,null,null,null,null,null,null,null,null,null,null,null,null,null,"2023-08-21",2,""]
[null,null,null,null,null,null,null,null,null,null,null,null,null,null,null,null,null,null,null,null,"2023-08-22",3,""]
[null,null,null,null,null,null,null,null,null,null,null,null,null,null,null,null,null,null,null,null,"2023-08-23",4,""]
[null,null,null,null,null,null,null,null,null,null,null,null,null,null,null,null,null,null,null,null,"2023-08-24",5,""]
[null,null,null,null,null,null,null,null,null,null,null,null,null,null,null,null,null,null,null,null,"2023-08-25",6,""]
[null,null,null,null,null,null,null,null,null,null,null,null,null,null,null,null,null,null,null,null,"2023-08-26",7,""]
[null,null,null,null,null,null,null,null,null,null,null,null,null,null,null,null,null,null,null,null,"2023-08-27",1,""]
[null,null,null,null,null,null,null,null,null,null,null,null,null,null,null,null,null,null,null,null,"2023-08-28",2,""]
[null,null,null,null,null,null,null,null,null,null,null,null,null,null,null,null,null,null,null,null,"2023-08-29",3,""]
[null,null,null,null,null,null,null,null,null,null,null,null,null,null,null,null,null,null,null,null,"2023-08-30",4,""]
[null,null,null,null,null,null,null,null,null,null,null,null,null,null,null,null,null,null,null,null,"2023-08-31",5,""]
[null,null,null,null,null,null,null,null,null,null,null,null,null,null,null,null,null,null,null,null,"2023-09-01",6,""]
[null,null,null,null,null,null,null,null,null,null,null,null,null,null,null,null,null,null,null,null,"2023-09-02",7,""]
[null,null,null,null,null,null,null,null,null,null,null,null,null,null,null,null,null,null,null,null,"2023-09-03",1,""]
[null,null,null,null,null,null,null,null,null,null,null,null,null,null,null,null,null,null,null,null,"2023-09-04",2,""]
[null,null,null,null,null,null,null,null,null,null,null,null,null,null,null,null,null,null,null,null,"2023-09-05",3,""]
[null,null,null,null,null,null,null,null,null,null,null,null,null,null,null,null,null,null,null,null,"2023-09-06",4,""]
[null,null,null,null,null,null,null,null,null,null,null,null,null,null,null,null,null,null,null,null,"2023-09-07",5,""]
[null,null,null,null,null,null,null,null,null,null,null,null,null,null,null,null,null,null,null,null,"2023-09-08",6,""]
[null,null,null,null,null,null,null,null,null,null,null,null,null,null,null,null,null,null,null,null,"2023-09-09",7,""]
[null,null,null,null,null,null,null,null,null,null,null,null,null,null,null,null,null,null,null,null,"2023-09-10",1,""]
[null,null,null,null,null,null,null,null,null,null,null,null,null,null,null,null,null,null,null,null,"2023-09-11",2,""]
[null,null,null,null,null,null,null,null,null,null,null,null,null,null,null,null,null,null,null,null,"2023-09-12",3,""]
[null,null,null,null,null,null,null,null,null,null,null,null,null,null,null,null,null,null,null,null,"2023-09-13",4,""]
[null,null,null,null,null,null,null,null,null,null,null,null,null,null,null,null,null,null,null,null,"2023-09-14",5,""]
[null,null,null,null,null,null,null,null,null,null,null,null,null,null,null,null,null,null,null,null,"2023-09-15",6,""]
[null,null,null,null,null,null,null,null,null,null,null,null,null,null,null,null,null,null,null,null,"2023-09-16",7,""]
[null,null,null,null,null,null,null,null,null,null,null,null,null,null,null,null,null,null,null,null,"2023-09-17",1,""]
[null,null,null,null,null,null,null,null,null,null,null,null,null,null,null,null,null,null,null,null,"2023-09-18",2,""]
[null,null,null,null,null,null,null,null,null,null,null,null,null,null,null,null,null,null,null,null,"2023-09-19",3,""]
[null,null,null,null,null,null,null,null,null,null,null,null,null,null,null,null,null,null,null,null,"2023-09-20",4,""]
[null,null,null,null,null,null,null,null,null,null,null,null,null,null,null,null,null,null,null,null,"2023-09-21",5,""]
[null,null,null,null,null,null,null,null,null,null,null,null,null,null,null,null,null,null,null,null,"2023-09-22",6,""]
[null,null,null,null,null,null,null,null,null,null,null,null,null,null,null,null,null,null,null,null,"2023-09-23",7,""]
[null,null,null,null,null,null,null,null,null,null,null,null,null,null,null,null,null,null,null,null,"2023-09-24",1,""]
[null,null,null,null,null,null,null,null,null,null,null,null,null,null,null,null,null,null,null,null,"2023-09-25",2,""]
[null,null,null,null,null,null,null,null,null,null,null,null,null,null,null,null,null,null,null,null,"2023-09-26",3,""]
[null,null,null,null,null,null,null,null,null,null,null,null,null,null,null,null,null,null,null,null,"2023-09-27",4,""]
[null,null,null,null,null,null,null,null,null,null,null,null,null,null,null,null,null,null,null,null,"2023-09-28",5,""]
[null,null,null,null,null,null,null,null,null,null,null,null,null,null,null,null,null,null,null,null,"2023-09-29",6,""]
[null,null,null,null,null,null,null,null,null,null,null,null,null,null,null,null,null,null,null,null,"2023-09-30",7,""]
[null,null,null,null,null,null,null,null,null,null,null,null,null,null,null,null,null,null,null,null,"2023-10-01",1,""]
[null,null,null,null,null,null,null,null,null,null,null,null,null,null,null,null,null,null,null,null,"2023-10-02",2,""]
[null,null,null,null,null,null,null,null,null,null,null,null,null,null,null,null,null,null,null,null,"2023-10-03",3,""]
[null,null,null,null,null,null,null,null,null,null,null,null,null,null,null,null,null,null,null,null,"2023-10-04",4,""]
[null,null,null,null,null,null,null,null,null,null,null,null,null,null,null,null,null,null,null,null,"2023-10-05",5,""]
[null,null,null,null,null,null,null,null,null,null,null,null,null,null,null,null,null,null,null,null,"2023-10-06",6,""]
[null,null,null,null,null,null,null,null,null,null,null,null,null,null,null,null,null,null,null,null,"2023-10-07",7,""]
[null,null,null,null,null,null,null,null,null,null,null,null,null,null,null,null,null,null,null,null,"2023-10-08",1,""]
[null,null,null,null,null,null,null,null,null,null,null,null,null,null,null,null,null,null,null,null,{"$f":"+U258-1","v":"2023-10-09"},2,""]
[null,null,null,null,null,null,null,null,null,null,null,null,null,null,null,null,null,null,null,null,"2023-10-10",{"$f":"WEEKDAY(U258)","v":3},{"$f":"IFERROR(IF(V258=7,\"\",IF(V258=1,\"\",IF(AND(U258>VALUE($F$29),U258<VALUE($F$16)),U258,\"\"))),\"\")","v":""}]
[null,null,null,null,null,null,null,null,null,null,null,null,null,null,null,null,null,null,null,null,"2023-10-11",4,""]
[null,null,null,null,null,null,null,null,null,null,null,null,null,null,null,null,null,null,null,null,"2023-10-12",5,""]
[null,null,null,null,null,null,null,null,null,null,null,null,null,null,null,null,null,null,null,null,"2023-10-13",6,""]
[null,null,null,null,null,null,null,null,null,null,null,null,null,null,null,null,null,null,null,null,"2023-10-14",7,""]
[null,null,null,null,null,null,null,null,null,null,null,null,null,null,null,null,null,null,null,null,"2023-10-15",1,""]
[null,null,null,null,null,null,null,null,null,null,null,null,null,null,null,null,null,null,null,null,"2023-10-16",2,""]
[null,null,null,null,null,null,null,null,null,null,null,null,null,null,null,null,null,null,null,null,"2023-10-17",3,""]
[null,null,null,null,null,null,null,null,null,null,null,null,null,null,null,null,null,null,null,null,"2023-10-18",4,""]
[null,null,null,null,null,null,null,null,null,null,null,null,null,null,null,null,null,null,null,null,"2023-10-19",5,""]
[null,null,null,null,null,null,null,null,null,null,null,null,null,null,null,null,null,null,null,null,"2023-10-20",6,""]
[null,null,null,null,null,null,null,null,null,null,null,null,null,null,null,null,null,null,null,null,"2023-10-21",7,""]
[null,null,null,null,null,null,null,null,null,null,null,null,null,null,null,null,null,null,null,null,"2023-10-22",1,""]
[null,null,null,null,null,null,null,null,null,null,null,null,null,null,null,null,null,null,null,null,"2023-10-23",2,""]
[null,null,null,null,null,null,null,null,null,null,null,null,null,null,null,null,null,null,null,null,"2023-10-24",3,""]
[null,null,null,null,null,null,null,null,null,null,null,null,null,null,null,null,null,null,null,null,"2023-10-25",4,""]
[null,null,null,null,null,null,null,null,null,null,null,null,null,null,null,null,null,null,null,null,"2023-10-26",5,""]
[null,null,null,null,null,null,null,null,null,null,null,null,null,null,null,null,null,null,null,null,"2023-10-27",6,""]
[null,null,null,null,null,null,null,null,null,null,null,null,null,null,null,null,null,null,null,null,"2023-10-28",7,""]
[null,null,null,null,null,null,null,null,null,null,null,null,null,null,null,null,null,null,null,null,"2023-10-29",1,""]
[null,null,null,null,null,null,null,null,null,null,null,null,null,null,null,null,null,null,null,null,"2023-10-30",2,""]
[null,null,null,null,null,null,null,null,null,null,null,null,null,null,null,null,null,null,null,null,"2023-10-31",3,""]
[null,null,null,null,null,null,null,null,null,null,null,null,null,null,null,null,null,null,null,null,"2023-11-01",4,""]
[null,null,null,null,null,null,null,null,null,null,null,null,null,null,null,null,null,null,null,null,"2023-11-02",5,""]
[null,null,null,null,null,null,null,null,null,null,null,null,null,null,null,null,null,null,null,null,"2023-11-03",6,""]
[null,null,null,null,null,null,null,null,null,null,null,null,null,null,null,null,null,null,null,null,"2023-11-04",7,""]
[null,null,null,null,null,null,null,null,null,null,null,null,null,null,null,null,null,null,null,null,"2023-11-05",1,""]
[null,null,null,null,null,null,null,null,null,null,null,null,null,null,null,null,null,null,null,null,"2023-11-06",2,""]
[null,null,null,null,null,null,null,null,null,null,null,null,null,null,null,null,null,null,null,null,"2023-11-07",3,""]
[null,null,null,null,null,null,null,null,null,null,null,null,null,null,null,null,null,null,null,null,"2023-11-08",4,""]
[null,null,null,null,null,null,null,null,null,null,null,null,null,null,null,null,null,null,null,null,"2023-11-09",5,""]
[null,null,null,null,null,null,null,null,null,null,null,null,null,null,null,null,null,null,null,null,"2023-11-10",6,""]
[null,null,null,null,null,null,null,null,null,null,null,null,null,null,null,null,null,null,null,null,"2023-11-11",7,""]
[null,null,null,null,null,null,null,null,null,null,null,null,null,null,null,null,null,null,null,null,"2023-11-12",1,""]
[null,null,null,null,null,null,null,null,null,null,null,null,null,null,null,null,null,null,null,null,"2023-11-13",2,""]
[null,null,null,null,null,null,null,null,null,null,null,null,null,null,null,null,null,null,null,null,"2023-11-14",3,""]
[null,null,null,null,null,null,null,null,null,null,null,null,null,null,null,null,null,null,null,null,"2023-11-15",4,""]
[null,null,null,null,null,null,null,null,null,null,null,null,null,null,null,null,null,null,null,null,"2023-11-16",5,""]
[null,null,null,null,null,null,null,null,null,null,null,null,null,null,null,null,null,null,null,null,"2023-11-17",6,""]
[null,null,null,null,null,null,null,null,null,null,null,null,null,null,null,null,null,null,null,null,"2023-11-18",7,""]
[null,null,null,null,null,null,null,null,null,null,null,null,null,null,null,null,null,null,null,null,"2023-11-19",1,""]
[null,null,null,null,null,null,null,null,null,null,null,null,null,null,null,null,null,null,null,null,"2023-11-20",2,""]
[null,null,null,null,null,null,null,null,null,null,null,null,null,null,null,null,null,null,null,null,"2023-11-21",3,""]
[null,null,null,null,null,null,null,null,null,null,null,null,null,null,null,null,null,null,null,null,"2023-11-22",4,""]
[null,null,null,null,null,null,null,null,null,null,null,null,null,null,null,null,null,null,null,null,"2023-11-23",5,""]
[null,null,null,null,null,null,null,null,null,null,null,null,null,null,null,null,null,null,null,null,"2023-11-24",6,""]
[null,null,null,null,null,null,null,null,null,null,null,null,null,null,null,null,null,null,null,null,"2023-11-25",7,""]
[null,null,null,null,null,null,null,null,null,null,null,null,null,null,null,null,null,null,null,null,"2023-11-26",1,""]
[null,null,null,null,null,null,null,null,null,null,null,null,null,null,null,null,null,null,null,null,"2023-11-27",2,""]
[null,null,null,null,null,null,null,null,null,null,null,null,null,null,null,null,null,null,null,null,"2023-11-28",3,""]
[null,null,null,null,null,null,null,null,null,null,null,null,null,null,null,null,null,null,null,null,"2023-11-29",4,""]
[null,null,null,null,null,null,null,null,null,null,null,null,null,null,null,null,null,null,null,null,"2023-11-30",5,""]
[null,null,null,null,null,null,null,null,null,null,null,null,null,null,null,null,null,null,null,null,"2023-12-01",6,""]
[null,null,null,null,null,null,null,null,null,null,null,null,null,null,null,null,null,null,null,null,"2023-12-02",7,""]
[null,null,null,null,null,null,null,null,null,null,null,null,null,null,null,null,null,null,null,null,"2023-12-03",1,""]
[null,null,null,null,null,null,null,null,null,null,null,null,null,null,null,null,null,null,null,null,"2023-12-04",2,""]
[null,null,null,null,null,null,null,null,null,null,null,null,null,null,null,null,null,null,null,null,"2023-12-05",3,""]
[null,null,null,null,null,null,null,null,null,null,null,null,null,null,null,null,null,null,null,null,"2023-12-06",4,""]
[null,null,null,null,null,null,null,null,null,null,null,null,null,null,null,null,null,null,null,null,"2023-12-07",5,""]
[null,null,null,null,null,null,null,null,null,null,null,null,null,null,null,null,null,null,null,null,"2023-12-08",6,""]
[null,null,null,null,null,null,null,null,null,null,null,null,null,null,null,null,null,null,null,null,"2023-12-09",7,""]
[null,null,null,null,null,null,null,null,null,null,null,null,null,null,null,null,null,null,null,null,"2023-12-10",1,""]
[null,null,null,null,null,null,null,null,null,null,null,null,null,null,null,null,null,null,null,null,"2023-12-11",2,""]
[null,null,null,null,null,null,null,null,null,null,null,null,null,null,null,null,null,null,null,null,{"$f":"+U322-1","v":"2023-12-12"},3,""]
[null,null,null,null,null,null,null,null,null,null,null,null,null,null,null,null,null,null,null,null,"2023-12-13",{"$f":"WEEKDAY(U322)","v":4},{"$f":"IFERROR(IF(V322=7,\"\",IF(V322=1,\"\",IF(AND(U322>VALUE($F$29),U322<VALUE($F$16)),U322,\"\"))),\"\")","v":""}]
[null,null,null,null,null,null,null,null,null,null,null,null,null,null,null,null,null,null,null,null,"2023-12-14",5,""]
[null,null,null,null,null,null,null,null,null,null,null,null,null,null,null,null,null,null,null,null,"2023-12-15",6,""]
[null,null,null,null,null,null,null,null,null,null,null,null,null,null,null,null,null,null,null,null,"2023-12-16",7,""]
[null,null,null,null,null,null,null,null,null,null,null,null,null,null,null,null,null,null,null,null,"2023-12-17",1,""]
[null,null,null,null,null,null,null,null,null,null,null,null,null,null,null,null,null,null,null,null,"2023-12-18",2,""]
[null,null,null,null,null,null,null,null,null,null,null,null,null,null,null,null,null,null,null,null,"2023-12-19",3,""]
[null,null,null,null,null,null,null,null,null,null,null,null,null,null,null,null,null,null,null,null,"2023-12-20",4,""]
[null,null,null,null,null,null,null,null,null,null,null,null,null,null,null,null,null,null,null,null,"2023-12-21",5,""]
[null,null,null,null,null,null,null,null,null,null,null,null,null,null,null,null,null,null,null,null,"2023-12-22",6,""]
[null,null,null,null,null,null,null,null,null,null,null,null,null,null,null,null,null,null,null,null,"2023-12-23",7,""]
[null,null,null,null,null,null,null,null,null,null,null,null,null,null,null,null,null,null,null,null,"2023-12-24",1,""]
[null,null,null,null,null,null,null,null,null,null,null,null,null,null,null,null,null,null,null,null,"2023-12-25",2,""]
[null,null,null,null,null,null,null,null,null,null,null,null,null,null,null,null,null,null,null,null,"2023-12-26",3,""]
[null,null,null,null,null,null,null,null,null,null,null,null,null,null,null,null,null,null,null,null,"2023-12-27",4,""]
[null,null,null,null,null,null,null,null,null,null,null,null,null,null,null,null,null,null,null,null,"2023-12-28",5,""]
[null,null,null,null,null,null,null,null,null,null,null,null,null,null,null,null,null,null,null,null,"2023-12-29",6,""]
[null,null,null,null,null,null,null,null,null,null,null,null,null,null,null,null,null,null,null,null,"2023-12-30",7,""]
[null,null,null,null,null,null,null,null,null,null,null,null,null,null,null,null,null,null,null,null,"2023-12-31",1,""]
[null,null,null,null,null,null,null,null,null,null,null,null,null,null,null,null,null,null,null,null,"2024-01-01",2,""]
[null,null,null,null,null,null,null,null,null,null,null,null,null,null,null,null,null,null,null,null,"2024-01-02",3,""]
[null,null,null,null,null,null,null,null,null,null,null,null,null,null,null,null,null,null,null,null,"2024-01-03",4,""]
[null,null,null,null,null,null,null,null,null,null,null,null,null,null,null,null,null,null,null,null,"2024-01-04",5,""]
[null,null,null,null,null,null,null,null,null,null,null,null,null,null,null,null,null,null,null,null,"2024-01-05",6,""]
[null,null,null,null,null,null,null,null,null,null,null,null,null,null,null,null,null,null,null,null,"2024-01-06",7,""]
[null,null,null,null,null,null,null,null,null,null,null,null,null,null,null,null,null,null,null,null,"2024-01-07",1,""]
[null,null,null,null,null,null,null,null,null,null,null,null,null,null,null,null,null,null,null,null,"2024-01-08",2,""]
[null,null,null,null,null,null,null,null,null,null,null,null,null,null,null,null,null,null,null,null,"2024-01-09",3,""]
[null,null,null,null,null,null,null,null,null,null,null,null,null,null,null,null,null,null,null,null,"2024-01-10",4,""]
[null,null,null,null,null,null,null,null,null,null,null,null,null,null,null,null,null,null,null,null,"2024-01-11",5,""]
[null,null,null,null,null,null,null,null,null,null,null,null,null,null,null,null,null,null,null,null,"2024-01-12",6,""]
[null,null,null,null,null,null,null,null,null,null,null,null,null,null,null,null,null,null,null,null,"2024-01-13",7,""]
[null,null,null,null,null,null,null,null,null,null,null,null,null,null,null,null,null,null,null,null,"2024-01-14",1,""]
[null,null,null,null,null,null,null,null,null,null,null,null,null,null,null,null,null,null,null,null,"2024-01-15",2,""]
[null,null,null,null,null,null,null,null,null,null,null,null,null,null,null,null,null,null,null,null,"2024-01-16",3,""]
[null,null,null,null,null,null,null,null,null,null,null,null,null,null,null,null,null,null,null,null,"2024-01-17",4,""]
[null,null,null,null,null,null,null,null,null,null,null,null,null,null,null,null,null,null,null,null,"2024-01-18",5,""]
[null,null,null,null,null,null,null,null,null,null,null,null,null,null,null,null,null,null,null,null,"2024-01-19",6,""]
[null,null,null,null,null,null,null,null,null,null,null,null,null,null,null,null,null,null,null,null,"2024-01-20",7,""]
[null,null,null,null,null,null,null,null,null,null,null,null,null,null,null,null,null,null,null,null,"2024-01-21",1,""]
[null,null,null,null,null,null,null,null,null,null,null,null,null,null,null,null,null,null,null,null,"2024-01-22",2,""]
[null,null,null,null,null,null,null,null,null,null,null,null,null,null,null,null,null,null,null,null,"2024-01-23",3,""]
[null,null,null,null,null,null,null,null,null,null,null,null,null,null,null,null,null,null,null,null,{"$f":"+U365-1","v":"2024-01-24"},4,""]
[null,null,null,null,null,null,null,null,null,null,null,null,null,null,null,null,null,null,null,null,{"$f":"TODAY()","v":"2024-01-25"},5,""]
[null,null,null,null,null,null,null,null,null,null,null,null,null,null,null,null,null,null,1,null,{"$f":"+U365+1","v":"2024-01-26"},6,"2024-01-26"]
[null,null,null,null,null,null,null,null,null,null,null,null,null,null,null,null,null,null,null,null,{"$f":"+U366+1","v":"2024-01-27"},7,""]
[null,null,null,null,null,null,null,null,null,null,null,null,null,null,null,null,null,null,null,null,"2024-01-28",1,""]
[null,null,null,null,null,null,null,null,null,null,null,null,null,null,null,null,null,null,null,null,"2024-01-29",2,"2024-01-29"]
[null,null,null,null,null,null,null,null,null,null,null,null,null,null,null,null,null,null,null,null,"2024-01-30",3,"2024-01-30"]
[null,null,null,null,null,null,null,null,null,null,null,null,null,null,null,null,null,null,null,null,"2024-01-31",4,"2024-01-31"]
[null,null,null,null,null,null,null,null,null,null,null,null,null,null,null,null,null,null,null,null,"2024-02-01",5,"2024-02-01"]
[null,null,null,null,null,null,null,null,null,null,null,null,null,null,null,null,null,null,null,null,"2024-02-02",6,"2024-02-02"]
[null,null,null,null,null,null,null,null,null,null,null,null,null,null,null,null,null,null,null,null,"2024-02-03",7,""]
[null,null,null,null,null,null,null,null,null,null,null,null,null,null,null,null,null,null,null,null,"2024-02-04",1,""]
[null,null,null,null,null,null,null,null,null,null,null,null,null,null,null,null,null,null,null,null,"2024-02-05",2,"2024-02-05"]
[null,null,null,null,null,null,null,null,null,null,null,null,null,null,null,null,null,null,null,null,"2024-02-06",3,"2024-02-06"]
[null,null,null,null,null,null,null,null,null,null,null,null,null,null,null,null,null,null,null,null,"2024-02-07",4,"2024-02-07"]
[null,null,null,null,null,null,null,null,null,null,null,null,null,null,null,null,null,null,null,null,"2024-02-08",5,"2024-02-08"]
[null,null,null,null,null,null,null,null,null,null,null,null,null,null,null,null,null,null,null,null,"2024-02-09",6,"2024-02-09"]
[null,null,null,null,null,null,null,null,null,null,null,null,null,null,null,null,null,null,null,null,"2024-02-10",7,""]
[null,null,null,null,null,null,null,null,null,null,null,null,null,null,null,null,null,null,null,null,"2024-02-11",1,""]
[null,null,null,null,null,null,null,null,null,null,null,null,null,null,null,null,null,null,null,null,"2024-02-12",2,"2024-02-12"]
[null,null,null,null,null,null,null,null,null,null,null,null,null,null,null,null,null,null,null,null,"2024-02-13",3,""]
[null,null,null,null,null,null,null,null,null,null,null,null,null,null,null,null,null,null,null,null,"2024-02-14",4,""]
[null,null,null,null,null,null,null,null,null,null,null,null,null,null,null,null,null,null,null,null,"2024-02-15",{"$f":"WEEKDAY(U386)","v":5},{"$f":"IFERROR(IF(V386=7,\"\",IF(V386=1,\"\",IF(AND(U386>VALUE($F$29),U386<VALUE($F$16)),U386,\"\"))),\"\")","v":""}]
[null,null,null,null,null,null,null,null,null,null,null,null,null,null,null,null,null,null,null,null,"2024-02-16",6,""]
[null,null,null,null,null,null,null,null,null,null,null,null,null,null,null,null,null,null,null,null,"2024-02-17",7,""]
[null,null,null,null,null,null,null,null,null,null,null,null,null,null,null,null,null,null,null,null,"2024-02-18",1,""]
[null,null,null,null,null,null,null,null,null,null,null,null,null,null,null,null,null,null,null,null,"2024-02-19",2,""]
[null,null,null,null,null,null,null,null,null,null,null,null,null,null,null,null,null,null,null,null,"2024-02-20",3,""]
[null,null,null,null,null,null,null,null,null,null,null,null,null,null,null,null,null,null,null,null,"2024-02-21",4,""]
[null,null,null,null,null,null,null,null,null,null,null,null,null,null,null,null,null,null,null,null,"2024-02-22",5,""]
[null,null,null,null,null,null,null,null,null,null,null,null,null,null,null,null,null,null,null,null,"2024-02-23",6,""]
[null,null,null,null,null,null,null,null,null,null,null,null,null,null,null,null,null,null,null,null,"2024-02-24",7,""]
[null,null,null,null,null,null,null,null,null,null,null,null,null,null,null,null,null,null,null,null,"2024-02-25",1,""]
[null,null,null,null,null,null,null,null,null,null,null,null,null,null,null,null,null,null,null,null,"2024-02-26",2,""]
[null,null,null,null,null,null,null,null,null,null,null,null,null,null,null,null,null,null,null,null,"2024-02-27",3,""]
[null,null,null,null,null,null,null,null,null,null,null,null,null,null,null,null,null,null,null,null,"2024-02-28",4,""]
[null,null,null,null,null,null,null,null,null,null,null,null,null,null,null,null,null,null,null,null,"2024-02-29",5,""]
[null,null,null,null,null,null,null,null,null,null,null,null,null,null,null,null,null,null,null,null,"2024-03-01",6,""]
[null,null,null,null,null,null,null,null,null,null,null,null,null,null,null,null,null,null,null,null,"2024-03-02",7,""]
[null,null,null,null,null,null,null,null,null,null,null,null,null,null,null,null,null,null,null,null,"2024-03-03",1,""]
[null,null,null,null,null,null,null,null,null,null,null,null,null,null,null,null,null,null,null,null,"2024-03-04",2,""]
[null,null,null,null,null,null,null,null,null,null,null,null,null,null,null,null,null,null,null,null,"2024-03-05",3,""]
[null,null,null,null,null,null,null,null,null,null,null,null,null,null,null,null,null,null,null,null,"2024-03-06",4,""]
[null,null,null,null,null,null,null,null,null,null,null,null,null,null,null,null,null,null,null,null,"2024-03-07",5,""]
[null,null,null,null,null,null,null,null,null,null,null,null,null,null,null,null,null,null,null,null,"2024-03-08",6,""]
[null,null,null,null,null,null,null,null,null,null,null,null,null,null,null,null,null,null,null,null,"2024-03-09",7,""]
[null,null,null,null,null,null,null,null,null,null,null,null,null,null,null,null,null,null,null,null,"2024-03-10",1,""]
[null,null,null,null,null,null,null,null,null,null,null,null,null,null,null,null,null,null,null,null,"2024-03-11",2,""]
[null,null,null,null,null,null,null,null,null,null,null,null,null,null,null,null,null,null,null,null,"2024-03-12",3,""]
[null,null,null,null,null,null,null,null,null,null,null,null,null,null,null,null,null,null,null,null,"2024-03-13",4,""]
[null,null,null,null,null,null,null,null,null,null,null,null,null,null,null,null,null,null,null,null,"2024-03-14",5,""]
[null,null,null,null,null,null,null,null,null,null,null,null,null,null,null,null,null,null,null,null,"2024-03-15",6,""]
[null,null,null,null,null,null,null,null,null,null,null,null,null,null,null,null,null,null,null,null,"2024-03-16",7,""]
[null,null,null,null,null,null,null,null,null,null,null,null,null,null,null,null,null,null,null,null,"2024-03-17",1,""]
[null,null,null,null,null,null,null,null,null,null,null,null,null,null,null,null,null,null,null,null,"2024-03-18",2,""]
[null,null,null,null,null,null,null,null,null,null,null,null,null,null,null,null,null,null,null,null,"2024-03-19",3,""]
[null,null,null,null,null,null,null,null,null,null,null,null,null,null,null,null,null,null,null,null,"2024-03-20",4,""]
[null,null,null,null,null,null,null,null,null,null,null,null,null,null,null,null,null,null,null,null,"2024-03-21",5,""]
[null,null,null,null,null,null,null,null,null,null,null,null,null,null,null,null,null,null,null,null,"2024-03-22",6,""]
[null,null,null,null,null,null,null,null,null,null,null,null,null,null,null,null,null,null,null,null,"2024-03-23",7,""]
[null,null,null,null,null,null,null,null,null,null,null,null,null,null,null,null,null,null,null,null,"2024-03-24",1,""]
[null,null,null,null,null,null,null,null,null,null,null,null,null,null,null,null,null,null,null,null,"2024-03-25",2,""]
[null,null,null,null,null,null,null,null,null,null,null,null,null,null,null,null,null,null,null,null,"2024-03-26",3,""]
[null,null,null,null,null,null,null,null,null,null,null,null,null,null,null,null,null,null,null,null,"2024-03-27",4,""]
[null,null,null,null,null,null,null,null,null,null,null,null,null,null,null,null,null,null,null,null,"2024-03-28",5,""]
[null,null,null,null,null,null,null,null,null,null,null,null,null,null,null,null,null,null,null,null,"2024-03-29",6,""]
[null,null,null,null,null,null,null,null,null,null,null,null,null,null,null,null,null,null,null,null,"2024-03-30",7,""]
[null,null,null,null,null,null,null,null,null,null,null,null,null,null,null,null,null,null,null,null,{"$f":"+U430+1","v":"2024-03-31"},1,""]
[null,null,null,null,null,null,null,null,null,null,null,null,null,null,null,null,null,null,null,null,"2024-04-01",2,""]
[null,null,null,null,null,null,null,null,null,null,null,null,null,null,null,null,null,null,null,null,"2024-04-02",3,""]
[null,null,null,null,null,null,null,null,null,null,null,null,null,null,null,null,null,null,null,null,"2024-04-03",4,""]
[null,null,null,null,null,null,null,null,null,null,null,null,null,null,null,null,null,null,null,null,"2024-04-04",5,""]
[null,null,null,null,null,null,null,null,null,null,null,null,null,null,null,null,null,null,null,null,"2024-04-05",6,""]
[null,null,null,null,null,null,null,null,null,null,null,null,null,null,null,null,null,null,null,null,"2024-04-06",7,""]
[null,null,null,null,null,null,null,null,null,null,null,null,null,null,null,null,null,null,null,null,"2024-04-07",1,""]
[null,null,null,null,null,null,null,null,null,null,null,null,null,null,null,null,null,null,null,null,"2024-04-08",2,""]
[null,null,null,null,null,null,null,null,null,null,null,null,null,null,null,null,null,null,null,null,"2024-04-09",3,""]
[null,null,null,null,null,null,null,null,null,null,null,null,null,null,null,null,null,null,null,null,"2024-04-10",4,""]
[null,null,null,null,null,null,null,null,null,null,null,null,null,null,null,null,null,null,null,null,"2024-04-11",5,""]
[null,null,null,null,null,null,null,null,null,null,null,null,null,null,null,null,null,null,null,null,"2024-04-12",6,""]
[null,null,null,null,null,null,null,null,null,null,null,null,null,null,null,null,null,null,null,null,"2024-04-13",7,""]
[null,null,null,null,null,null,null,null,null,null,null,null,null,null,null,null,null,null,null,null,"2024-04-14",1,""]
[null,null,null,null,null,null,null,null,null,null,null,null,null,null,null,null,null,null,null,null,"2024-04-15",2,""]
[null,null,null,null,null,null,null,null,null,null,null,null,null,null,null,null,null,null,null,null,"2024-04-16",3,""]
[null,null,null,null,null,null,null,null,null,null,null,null,null,null,null,null,null,null,null,null,"2024-04-17",4,""]
[null,null,null,null,null,null,null,null,null,null,null,null,null,null,null,null,null,null,null,null,"2024-04-18",5,""]
[null,null,null,null,null,null,null,null,null,null,null,null,null,null,null,null,null,null,null,null,"2024-04-19",{"$f":"WEEKDAY(U450)","v":6},{"$f":"IFERROR(IF(V450=7,\"\",IF(V450=1,\"\",IF(AND(U450>VALUE($F$29),U450<VALUE($F$16)),U450,\"\"))),\"\")","v":""}]
[null,null,null,null,null,null,null,null,null,null,null,null,null,null,null,null,null,null,null,null,"2024-04-20",7,""]
[null,null,null,null,null,null,null,null,null,null,null,null,null,null,null,null,null,null,null,null,"2024-04-21",1,""]
[null,null,null,null,null,null,null,null,null,null,null,null,null,null,null,null,null,null,null,null,"2024-04-22",2,""]
[null,null,null,null,null,null,null,null,null,null,null,null,null,null,null,null,null,null,null,null,"2024-04-23",3,""]
[null,null,null,null,null,null,null,null,null,null,null,null,null,null,null,null,null,null,null,null,"2024-04-24",4,""]
[null,null,null,null,null,null,null,null,null,null,null,null,null,null,null,null,null,null,null,null,"2024-04-25",5,""]
[null,null,null,null,null,null,null,null,null,null,null,null,null,null,null,null,null,null,null,null,"2024-04-26",6,""]
[null,null,null,null,null,null,null,null,null,null,null,null,null,null,null,null,null,null,null,null,"2024-04-27",7,""]
[null,null,null,null,null,null,null,null,null,null,null,null,null,null,null,null,null,null,null,null,"2024-04-28",1,""]
[null,null,null,null,null,null,null,null,null,null,null,null,null,null,null,null,null,null,null,null,"2024-04-29",2,""]
[null,null,null,null,null,null,null,null,null,null,null,null,null,null,null,null,null,null,null,null,"2024-04-30",3,""]
[null,null,null,null,null,null,null,null,null,null,null,null,null,null,null,null,null,null,null,null,"2024-05-01",4,""]
[null,null,null,null,null,null,null,null,null,null,null,null,null,null,null,null,null,null,null,null,"2024-05-02",5,""]
[null,null,null,null,null,null,null,null,null,null,null,null,null,null,null,null,null,null,null,null,"2024-05-03",6,""]
[null,null,null,null,null,null,null,null,null,null,null,null,null,null,null,null,null,null,null,null,"2024-05-04",7,""]
[null,null,null,null,null,null,null,null,null,null,null,null,null,null,null,null,null,null,null,null,"2024-05-05",1,""]
[null,null,null,null,null,null,null,null,null,null,null,null,null,null,null,null,null,null,null,null,"2024-05-06",2,""]
[null,null,null,null,null,null,null,null,null,null,null,null,null,null,null,null,null,null,null,null,"2024-05-07",3,""]
[null,null,null,null,null,null,null,null,null,null,null,null,null,null,null,null,null,null,null,null,"2024-05-08",4,""]
[null,null,null,null,null,null,null,null,null,null,null,null,null,null,null,null,null,null,null,null,"2024-05-09",5,""]
[null,null,null,null,null,null,null,null,null,null,null,null,null,null,null,null,null,null,null,null,"2024-05-10",6,""]
[null,null,null,null,null,null,null,null,null,null,null,null,null,null,null,null,null,null,null,null,"2024-05-11",7,""]
[null,null,null,null,null,null,null,null,null,null,null,null,null,null,null,null,null,null,null,null,"2024-05-12",1,""]
[null,null,null,null,null,null,null,null,null,null,null,null,null,null,null,null,null,null,null,null,"2024-05-13",2,""]
[null,null,null,null,null,null,null,null,null,null,null,null,null,null,null,null,null,null,null,null,"2024-05-14",3,""]
[null,null,null,null,null,null,null,null,null,null,null,null,null,null,null,null,null,null,null,null,"2024-05-15",4,""]
[null,null,null,null,null,null,null,null,null,null,null,null,null,null,null,null,null,null,null,null,"2024-05-16",5,""]
[null,null,null,null,null,null,null,null,null,null,null,null,null,null,null,null,null,null,null,null,"2024-05-17",6,""]
[null,null,null,null,null,null,null,null,null,null,null,null,null,null,null,null,null,null,null,null,"2024-05-18",7,""]
[null,null,null,null,null,null,null,null,null,null,null,null,null,null,null,null,null,null,null,null,"2024-05-19",1,""]
[null,null,null,null,null,null,null,null,null,null,null,null,null,null,null,null,null,null,null,null,"2024-05-20",2,""]
[null,null,null,null,null,null,null,null,null,null,null,null,null,null,null,null,null,null,null,null,"2024-05-21",3,""]
[null,null,null,null,null,null,null,null,null,null,null,null,null,null,null,null,null,null,null,null,"2024-05-22",4,""]
[null,null,null,null,null,null,null,null,null,null,null,null,null,null,null,null,null,null,null,null,"2024-05-23",5,""]
[null,null,null,null,null,null,null,null,null,null,null,null,null,null,null,null,null,null,null,null,"2024-05-24",6,""]
[null,null,null,null,null,null,null,null,null,null,null,null,null,null,null,null,null,null,null,null,"2024-05-25",7,""]
[null,null,null,null,null,null,null,null,null,null,null,null,null,null,null,null,null,null,null,null,"2024-05-26",1,""]
[null,null,null,null,null,null,null,null,null,null,null,null,null,null,null,null,null,null,null,null,"2024-05-27",2,""]
[null,null,null,null,null,null,null,null,null,null,null,null,null,null,null,null,null,null,null,null,"2024-05-28",3,""]
[null,null,null,null,null,null,null,null,null,null,null,null,null,null,null,null,null,null,null,null,"2024-05-29",4,""]
[null,null,null,null,null,null,null,null,null,null,null,null,null,null,null,null,null,null,null,null,"2024-05-30",5,""]
[null,null,null,null,null,null,null,null,null,null,null,null,null,null,null,null,null,null,null,null,"2024-05-31",6,""]
[null,null,null,null,null,null,null,null,null,null,null,null,null,null,null,null,null,null,null,null,"2024-06-01",7,""]
[null,null,null,null,null,null,null,null,null,null,null,null,null,null,null,null,null,null,null,null,"2024-06-02",1,""]
[null,null,null,null,null,null,null,null,null,null,null,null,null,null,null,null,null,null,null,null,{"$f":"+U494+1","v":"2024-06-03"},2,""]
[null,null,null,null,null,null,null,null,null,null,null,null,null,null,null,null,null,null,null,null,"2024-06-04",3,""]
[null,null,null,null,null,null,null,null,null,null,null,null,null,null,null,null,null,null,null,null,"2024-06-05",4,""]
[null,null,null,null,null,null,null,null,null,null,null,null,null,null,null,null,null,null,null,null,"2024-06-06",5,""]
[null,null,null,null,null,null,null,null,null,null,null,null,null,null,null,null,null,null,null,null,"2024-06-07",6,""]
[null,null,null,null,null,null,null,null,null,null,null,null,null,null,null,null,null,null,null,null,"2024-06-08",7,""]
[null,null,null,null,null,null,null,null,null,null,null,null,null,null,null,null,null,null,null,null,"2024-06-09",1,""]
[null,null,null,null,null,null,null,null,null,null,null,null,null,null,null,null,null,null,null,null,"2024-06-10",2,""]
[null,null,null,null,null,null,null,null,null,null,null,null,null,null,null,null,null,null,null,null,"2024-06-11",3,""]
[null,null,null,null,null,null,null,null,null,null,null,null,null,null,null,null,null,null,null,null,"2024-06-12",4,""]
[null,null,null,null,null,null,null,null,null,null,null,null,null,null,null,null,null,null,null,null,"2024-06-13",5,""]
[null,null,null,null,null,null,null,null,null,null,null,null,null,null,null,null,null,null,null,null,"2024-06-14",6,""]
[null,null,null,null,null,null,null,null,null,null,null,null,null,null,null,null,null,null,null,null,"2024-06-15",7,""]
[null,null,null,null,null,null,null,null,null,null,null,null,null,null,null,null,null,null,null,null,"2024-06-16",1,""]
[null,null,null,null,null,null,null,null,null,null,null,null,null,null,null,null,null,null,null,null,"2024-06-17",2,""]
[null,null,null,null,null,null,null,null,null,null,null,null,null,null,null,null,null,null,null,null,"2024-06-18",3,""]
[null,null,null,null,null,null,null,null,null,null,null,null,null,null,null,null,null,null,null,null,"2024-06-19",4,""]
[null,null,null,null,null,null,null,null,null,null,null,null,null,null,null,null,null,null,null,null,"2024-06-20",5,""]
[null,null,null,null,null,null,null,null,null,null,null,null,null,null,null,null,null,null,null,null,"2024-06-21",6,""]
[null,null,null,null,null,null,null,null,null,null,null,null,null,null,null,null,null,null,null,null,"2024-06-22",{"$f":"WEEKDAY(U514)","v":7},{"$f":"IFERROR(IF(V514=7,\"\",IF(V514=1,\"\",IF(AND(U514>VALUE($F$29),U514<VALUE($F$16)),U514,\"\"))),\"\")","v":""}]
[null,null,null,null,null,null,null,null,null,null,null,null,null,null,null,null,null,null,null,null,"2024-06-23",1,""]
[null,null,null,null,null,null,null,null,null,null,null,null,null,null,null,null,null,null,null,null,"2024-06-24",2,""]
[null,null,null,null,null,null,null,null,null,null,null,null,null,null,null,null,null,null,null,null,"2024-06-25",3,""]
[null,null,null,null,null,null,null,null,null,null,null,null,null,null,null,null,null,null,null,null,"2024-06-26",4,""]
[null,null,null,null,null,null,null,null,null,null,null,null,null,null,null,null,null,null,null,null,"2024-06-27",5,""]
[null,null,null,null,null,null,null,null,null,null,null,null,null,null,null,null,null,null,null,null,"2024-06-28",6,""]
[null,null,null,null,null,null,null,null,null,null,null,null,null,null,null,null,null,null,null,null,"2024-06-29",7,""]
[null,null,null,null,null,null,null,null,null,null,null,null,null,null,null,null,null,null,null,null,"2024-06-30",1,""]
[null,null,null,null,null,null,null,null,null,null,null,null,null,null,null,null,null,null,null,null,"2024-07-01",2,""]
[null,null,null,null,null,null,null,null,null,null,null,null,null,null,null,null,null,null,null,null,"2024-07-02",3,""]
[null,null,null,null,null,null,null,null,null,null,null,null,null,null,null,null,null,null,null,null,"2024-07-03",4,""]
[null,null,null,null,null,null,null,null,null,null,null,null,null,null,null,null,null,null,null,null,"2024-07-04",5,""]
[null,null,null,null,null,null,null,null,null,null,null,null,null,null,null,null,null,null,null,null,"2024-07-05",6,""]
[null,null,null,null,null,null,null,null,null,null,null,null,null,null,null,null,null,null,null,null,"2024-07-06",7,""]
[null,null,null,null,null,null,null,null,null,null,null,null,null,null,null,null,null,null,null,null,"2024-07-07",1,""]
[null,null,null,null,null,null,null,null,null,null,null,null,null,null,null,null,null,null,null,null,"2024-07-08",2,""]
[null,null,null,null,null,null,null,null,null,null,null,null,null,null,null,null,null,null,null,null,"2024-07-09",3,""]
[null,null,null,null,null,null,null,null,null,null,null,null,null,null,null,null,null,null,null,null,"2024-07-10",4,""]
[null,null,null,null,null,null,null,null,null,null,null,null,null,null,null,null,null,null,null,null,"2024-07-11",5,""]
[null,null,null,null,null,null,null,null,null,null,null,null,null,null,null,null,null,null,null,null,"2024-07-12",6,""]
[null,null,null,null,null,null,null,null,null,null,null,null,null,null,null,null,null,null,null,null,"2024-07-13",7,""]
[null,null,null,null,null,null,null,null,null,null,null,null,null,null,null,null,null,null,null,null,"2024-07-14",1,""]
[null,null,null,null,null,null,null,null,null,null,null,null,null,null,null,null,null,null,null,null,"2024-07-15",2,""]
[null,null,null,null,null,null,null,null,null,null,null,null,null,null,null,null,null,null,null,null,"2024-07-16",3,""]
[null,null,null,null,null,null,null,null,null,null,null,null,null,null,null,null,null,null,null,null,"2024-07-17",4,""]
[null,null,null,null,null,null,null,null,null,null,null,null,null,null,null,null,null,null,null,null,"2024-07-18",5,""]
[null,null,null,null,null,null,null,null,null,null,null,null,null,null,null,null,null,null,null,null,"2024-07-19",6,""]
[null,null,null,null,null,null,null,null,null,null,null,null,null,null,null,null,null,null,null,null,"2024-07-20",7,""]
[null,null,null,null,null,null,null,null,null,null,null,null,null,null,null,null,null,null,null,null,"2024-07-21",1,""]
[null,null,null,null,null,null,null,null,null,null,null,null,null,null,null,null,null,null,null,null,"2024-07-22",2,""]
[null,null,null,null,null,null,null,null,null,null,null,null,null,null,null,null,null,null,null,null,"2024-07-23",3,""]
[null,null,null,null,null,null,null,null,null,null,null,null,null,null,null,null,null,null,null,null,"2024-07-24",4,""]
[null,null,null,null,null,null,null,null,null,null,null,null,null,null,null,null,null,null,null,null,"2024-07-25",5,""]
[null,null,null,null,null,null,null,null,null,null,null,null,null,null,null,null,null,null,null,null,"2024-07-26",6,""]
[null,null,null,null,null,null,null,null,null,null,null,null,null,null,null,null,null,null,null,null,"2024-07-27",7,""]
[null,null,null,null,null,null,null,null,null,null,null,null,null,null,null,null,null,null,null,null,"2024-07-28",1,""]
[null,null,null,null,null,null,null,null,null,null,null,null,null,null,null,null,null,null,null,null,"2024-07-29",2,""]
[null,null,null,null,null,null,null,null,null,null,null,null,null,null,null,null,null,null,null,null,"2024-07-30",3,""]
[null,null,null,null,null,null,null,null,null,null,null,null,null,null,null,null,null,null,null,null,"2024-07-31",4,""]
[null,null,null,null,null,null,null,null,null,null,null,null,null,null,null,null,null,null,null,null,"2024-08-01",5,""]
[null,null,null,null,null,null,null,null,null,null,null,null,null,null,null,null,null,null,null,null,"2024-08-02",6,""]
[null,null,null,null,null,null,null,null,null,null,null,null,null,null,null,null,null,null,null,null,"2024-08-03",7,""]
[null,null,null,null,null,null,null,null,null,null,null,null,null,null,null,null,null,null,null,null,"2024-08-04",1,""]
[null,null,null,null,null,null,null,null,null,null,null,null,null,null,null,null,null,null,null,null,"2024-08-05",2,""]
[null,null,null,null,null,null,null,null,null,null,null,null,null,null,null,null,null,null,null,null,{"$f":"+U558+1","v":"2024-08-06"},3,""]
[null,null,null,null,null,null,null,null,null,null,null,null,null,null,null,null,null,null,null,null,"2024-08-07",4,""]
[null,null,null,null,null,null,null,null,null,null,null,null,null,null,null,null,null,null,null,null,"2024-08-08",5,""]
[null,null,null,null,null,null,null,null,null,null,null,null,null,null,null,null,null,null,null,null,"2024-08-09",6,""]
[null,null,null,null,null,null,null,null,null,null,null,null,null,null,null,null,null,null,null,null,"2024-08-10",7,""]
[null,null,null,null,null,null,null,null,null,null,null,null,null,null,null,null,null,null,null,null,"2024-08-11",1,""]
[null,null,null,null,null,null,null,null,null,null,null,null,null,null,null,null,null,null,null,null,"2024-08-12",2,""]
[null,null,null,null,null,null,null,null,null,null,null,null,null,null,null,null,null,null,null,null,"2024-08-13",3,""]
[null,null,null,null,null,null,null,null,null,null,null,null,null,null,null,null,null,null,null,null,"2024-08-14",4,""]
[null,null,null,null,null,null,null,null,null,null,null,null,null,null,null,null,null,null,null,null,"2024-08-15",5,""]
[null,null,null,null,null,null,null,null,null,null,null,null,null,null,null,null,null,null,null,null,"2024-08-16",6,""]
[null,null,null,null,null,null,null,null,null,null,null,null,null,null,null,null,null,null,null,null,"2024-08-17",7,""]
[null,null,null,null,null,null,null,null,null,null,null,null,null,null,null,null,null,null,null,null,"2024-08-18",1,""]
[null,null,null,null,null,null,null,null,null,null,null,null,null,null,null,null,null,null,null,null,"2024-08-19",2,""]
[null,null,null,null,null,null,null,null,null,null,null,null,null,null,null,null,null,null,null,null,"2024-08-20",3,""]
[null,null,null,null,null,null,null,null,null,null,null,null,null,null,null,null,null,null,null,null,"2024-08-21",4,""]
[null,null,null,null,null,null,null,null,null,null,null,null,null,null,null,null,null,null,null,null,"2024-08-22",5,""]
[null,null,null,null,null,null,null,null,null,null,null,null,null,null,null,null,null,null,null,null,"2024-08-23",6,""]
[null,null,null,null,null,null,null,null,null,null,null,null,null,null,null,null,null,null,null,null,"2024-08-24",7,""]
[null,null,null,null,null,null,null,null,null,null,null,null,null,null,null,null,null,null,null,null,"2024-08-25",{"$f":"WEEKDAY(U578)","v":1},{"$f":"IFERROR(IF(V578=7,\"\",IF(V578=1,\"\",IF(AND(U578>VALUE($F$29),U578<VALUE($F$16)),U578,\"\"))),\"\")","v":""}]
[null,null,null,null,null,null,null,null,null,null,null,null,null,null,null,null,null,null,null,null,"2024-08-26",2,""]
[null,null,null,null,null,null,null,null,null,null,null,null,null,null,null,null,null,null,null,null,"2024-08-27",3,""]
[null,null,null,null,null,null,null,null,null,null,null,null,null,null,null,null,null,null,null,null,"2024-08-28",4,""]
[null,null,null,null,null,null,null,null,null,null,null,null,null,null,null,null,null,null,null,null,"2024-08-29",5,""]
[null,null,null,null,null,null,null,null,null,null,null,null,null,null,null,null,null,null,null,null,"2024-08-30",6,""]
[null,null,null,null,null,null,null,null,null,null,null,null,null,null,null,null,null,null,null,null,"2024-08-31",7,""]
[null,null,null,null,null,null,null,null,null,null,null,null,null,null,null,null,null,null,null,null,"2024-09-01",1,""]
[null,null,null,null,null,null,null,null,null,null,null,null,null,null,null,null,null,null,null,null,"2024-09-02",2,""]
[null,null,null,null,null,null,null,null,null,null,null,null,null,null,null,null,null,null,null,null,"2024-09-03",3,""]
[null,null,null,null,null,null,null,null,null,null,null,null,null,null,null,null,null,null,null,null,"2024-09-04",4,""]
[null,null,null,null,null,null,null,null,null,null,null,null,null,null,null,null,null,null,null,null,"2024-09-05",5,""]
[null,null,null,null,null,null,null,null,null,null,null,null,null,null,null,null,null,null,null,null,"2024-09-06",6,""]
[null,null,null,null,null,null,null,null,null,null,null,null,null,null,null,null,null,null,null,null,"2024-09-07",7,""]
[null,null,null,null,null,null,null,null,null,null,null,null,null,null,null,null,null,null,null,null,"2024-09-08",1,""]
[null,null,null,null,null,null,null,null,null,null,null,null,null,null,null,null,null,null,null,null,"2024-09-09",2,""]
[null,null,null,null,null,null,null,null,null,null,null,null,null,null,null,null,null,null,null,null,"2024-09-10",3,""]
[null,null,null,null,null,null,null,null,null,null,null,null,null,null,null,null,null,null,null,null,"2024-09-11",4,""]
[null,null,null,null,null,null,null,null,null,null,null,null,null,null,null,null,null,null,null,null,"2024-09-12",5,""]
[null,null,null,null,null,null,null,null,null,null,null,null,null,null,null,null,null,null,null,null,"2024-09-13",6,""]
[null,null,null,null,null,null,null,null,null,null,null,null,null,null,null,null,null,null,null,null,"2024-09-14",7,""]
[null,null,null,null,null,null,null,null,null,null,null,null,null,null,null,null,null,null,null,null,"2024-09-15",1,""]
[null,null,null,null,null,null,null,null,null,null,null,null,null,null,null,null,null,null,null,null,"2024-09-16",2,""]
[null,null,null,null,null,null,null,null,null,null,null,null,null,null,null,null,null,null,null,null,"2024-09-17",3,""]
[null,null,null,null,null,null,null,null,null,null,null,null,null,null,null,null,null,null,null,null,"2024-09-18",4,""]
[null,null,null,null,null,null,null,null,null,null,null,null,null,null,null,null,null,null,null,null,"2024-09-19",5,""]
[null,null,null,null,null,null,null,null,null,null,null,null,null,null,null,null,null,null,null,null,"2024-09-20",6,""]
[null,null,null,null,null,null,null,null,null,null,null,null,null,null,null,null,null,null,null,null,"2024-09-21",7,""]
[null,null,null,null,null,null,null,null,null,null,null,null,null,null,null,null,null,null,null,null,"2024-09-22",1,""]
[null,null,null,null,null,null,null,null,null,null,null,null,null,null,null,null,null,null,null,null,"2024-09-23",2,""]
[null,null,null,null,null,null,null,null,null,null,null,null,null,null,null,null,null,null,null,null,"2024-09-24",3,""]
[null,null,null,null,null,null,null,null,null,null,null,null,null,null,null,null,null,null,null,null,"2024-09-25",4,""]
[null,null,null,null,null,null,null,null,null,null,null,null,null,null,null,null,null,null,null,null,"2024-09-26",5,""]
[null,null,null,null,null,null,null,null,null,null,null,null,null,null,null,null,null,null,null,null,"2024-09-27",6,""]
[null,null,null,null,null,null,null,null,null,null,null,null,null,null,null,null,null,null,null,null,"2024-09-28",7,""]
[null,null,null,null,null,null,null,null,null,null,null,null,null,null,null,null,null,null,null,null,"2024-09-29",1,""]
[null,null,null,null,null,null,null,null,null,null,null,null,null,null,null,null,null,null,null,null,"2024-09-30",2,""]
[null,null,null,null,null,null,null,null,null,null,null,null,null,null,null,null,null,null,null,null,"2024-10-01",3,""]
[null,null,null,null,null,null,null,null,null,null,null,null,null,null,null,null,null,null,null,null,"2024-10-02",4,""]
[null,null,null,null,null,null,null,null,null,null,null,null,null,null,null,null,null,null,null,null,"2024-10-03",5,""]
[null,null,null,null,null,null,null,null,null,null,null,null,null,null,null,null,null,null,null,null,"2024-10-04",6,""]
[null,null,null,null,null,null,null,null,null,null,null,null,null,null,null,null,null,null,null,null,"2024-10-05",7,""]
[null,null,null,null,null,null,null,null,null,null,null,null,null,null,null,null,null,null,null,null,"2024-10-06",1,""]
[null,null,null,null,null,null,null,null,null,null,null,null,null,null,null,null,null,null,null,null,"2024-10-07",2,""]
[null,null,null,null,null,null,null,null,null,null,null,null,null,null,null,null,null,null,null,null,"2024-10-08",3,""]
[null,null,null,null,null,null,null,null,null,null,null,null,null,null,null,null,null,null,null,null,{"$f":"+U622+1","v":"2024-10-09"},4,""]
[null,null,null,null,null,null,null,null,null,null,null,null,null,null,null,null,null,null,null,null,"2024-10-10",5,""]
[null,null,null,null,null,null,null,null,null,null,null,null,null,null,null,null,null,null,null,null,"2024-10-11",6,""]
[null,null,null,null,null,null,null,null,null,null,null,null,null,null,null,null,null,null,null,null,"2024-10-12",7,""]
[null,null,null,null,null,null,null,null,null,null,null,null,null,null,null,null,null,null,null,null,"2024-10-13",1,""]
[null,null,null,null,null,null,null,null,null,null,null,null,null,null,null,null,null,null,null,null,"2024-10-14",2,""]
[null,null,null,null,null,null,null,null,null,null,null,null,null,null,null,null,null,null,null,null,"2024-10-15",3,""]
[null,null,null,null,null,null,null,null,null,null,null,null,null,null,null,null,null,null,null,null,"2024-10-16",4,""]
[null,null,null,null,null,null,null,null,null,null,null,null,null,null,null,null,null,null,null,null,"2024-10-17",5,""]
[null,null,null,null,null,null,null,null,null,null,null,null,null,null,null,null,null,null,null,null,"2024-10-18",6,""]
[null,null,null,null,null,null,null,null,null,null,null,null,null,null,null,null,null,null,null,null,"2024-10-19",7,""]
[null,null,null,null,null,null,null,null,null,null,null,null,null,null,null,null,null,null,null,null,"2024-10-20",1,""]
[null,null,null,null,null,null,null,null,null,null,null,null,null,null,null,null,null,null,null,null,"2024-10-21",2,""]
[null,null,null,null,null,null,null,null,null,null,null,null,null,null,null,null,null,null,null,null,"2024-10-22",3,""]
[null,null,null,null,null,null,null,null,null,null,null,null,null,null,null,null,null,null,null,null,"2024-10-23",4,""]
[null,null,null,null,null,null,null,null,null,null,null,null,null,null,null,null,null,null,null,null,"2024-10-24",5,""]
[null,null,null,null,null,null,null,null,null,null,null,null,null,null,null,null,null,null,null,null,"2024-10-25",6,""]
[null,null,null,null,null,null,null,null,null,null,null,null,null,null,null,null,null,null,null,null,"2024-10-26",7,""]
[null,null,null,null,null,null,null,null,null,null,null,null,null,null,null,null,null,null,null,null,"2024-10-27",1,""]
[null,null,null,null,null,null,null,null,null,null,null,null,null,null,null,null,null,null,null,null,"2024-10-28",{"$f":"WEEKDAY(U642)","v":2},{"$f":"IFERROR(IF(V642=7,\"\",IF(V642=1,\"\",IF(AND(U642>VALUE($F$29),U642<VALUE($F$16)),U642,\"\"))),\"\")","v":""}]
[null,null,null,null,null,null,null,null,null,null,null,null,null,null,null,null,null,null,null,null,"2024-10-29",3,""]
[null,null,null,null,null,null,null,null,null,null,null,null,null,null,null,null,null,null,null,null,"2024-10-30",4,""]
[null,null,null,null,null,null,null,null,null,null,null,null,null,null,null,null,null,null,null,null,"2024-10-31",5,""]
[null,null,null,null,null,null,null,null,null,null,null,null,null,null,null,null,null,null,null,null,"2024-11-01",6,""]
[null,null,null,null,null,null,null,null,null,null,null,null,null,null,null,null,null,null,null,null,"2024-11-02",7,""]
[null,null,null,null,null,null,null,null,null,null,null,null,null,null,null,null,null,null,null,null,"2024-11-03",1,""]
[null,null,null,null,null,null,null,null,null,null,null,null,null,null,null,null,null,null,null,null,"2024-11-04",2,""]
[null,null,null,null,null,null,null,null,null,null,null,null,null,null,null,null,null,null,null,null,"2024-11-05",3,""]
[null,null,null,null,null,null,null,null,null,null,null,null,null,null,null,null,null,null,null,null,"2024-11-06",4,""]
[null,null,null,null,null,null,null,null,null,null,null,null,null,null,null,null,null,null,null,null,"2024-11-07",5,""]
[null,null,null,null,null,null,null,null,null,null,null,null,null,null,null,null,null,null,null,null,"2024-11-08",6,""]
[null,null,null,null,null,null,null,null,null,null,null,null,null,null,null,null,null,null,null,null,"2024-11-09",7,""]
[null,null,null,null,null,null,null,null,null,null,null,null,null,null,null,null,null,null,null,null,"2024-11-10",1,""]
[null,null,null,null,null,null,null,null,null,null,null,null,null,null,null,null,null,null,null,null,"2024-11-11",2,""]
[null,null,null,null,null,null,null,null,null,null,null,null,null,null,null,null,null,null,null,null,"2024-11-12",3,""]
[null,null,null,null,null,null,null,null,null,null,null,null,null,null,null,null,null,null,null,null,"2024-11-13",4,""]
[null,null,null,null,null,null,null,null,null,null,null,null,null,null,null,null,null,null,null,null,"2024-11-14",5,""]
[null,null,null,null,null,null,null,null,null,null,null,null,null,null,null,null,null,null,null,null,"2024-11-15",6,""]
[null,null,null,null,null,null,null,null,null,null,null,null,null,null,null,null,null,null,null,null,"2024-11-16",7,""]
[null,null,null,null,null,null,null,null,null,null,null,null,null,null,null,null,null,null,null,null,"2024-11-17",1,""]
[null,null,null,null,null,null,null,null,null,null,null,null,null,null,null,null,null,null,null,null,"2024-11-18",2,""]
[null,null,null,null,null,null,null,null,null,null,null,null,null,null,null,null,null,null,null,null,"2024-11-19",3,""]
[null,null,null,null,null,null,null,null,null,null,null,null,null,null,null,null,null,null,null,null,"2024-11-20",4,""]
[null,null,null,null,null,null,null,null,null,null,null,null,null,null,null,null,null,null,null,null,"2024-11-21",5,""]
[null,null,null,null,null,null,null,null,null,null,null,null,null,null,null,null,null,null,null,null,"2024-11-22",6,""]
[null,null,null,null,null,null,null,null,null,null,null,null,null,null,null,null,null,null,null,null,"2024-11-23",7,""]
[null,null,null,null,null,null,null,null,null,null,null,null,null,null,null,null,null,null,null,null,"2024-11-24",1,""]
[null,null,null,null,null,null,null,null,null,null,null,null,null,null,null,null,null,null,null,null,"2024-11-25",2,""]
[null,null,null,null,null,null,null,null,null,null,null,null,null,null,null,null,null,null,null,null,"2024-11-26",3,""]
[null,null,null,null,null,null,null,null,null,null,null,null,null,null,null,null,null,null,null,null,"2024-11-27",4,""]
[null,null,null,null,null,null,null,null,null,null,null,null,null,null,null,null,null,null,null,null,"2024-11-28",5,""]
[null,null,null,null,null,null,null,null,null,null,null,null,null,null,null,null,null,null,null,null,"2024-11-29",6,""]
[null,null,null,null,null,null,null,null,null,null,null,null,null,null,null,null,null,null,null,null,"2024-11-30",7,""]
[null,null,null,null,null,null,null,null,null,null,null,null,null,null,null,null,null,null,null,null,"2024-12-01",1,""]
[null,null,null,null,null,null,null,null,null,null,null,null,null,null,null,null,null,null,null,null,"2024-12-02",2,""]
[null,null,null,null,null,null,null,null,null,null,null,null,null,null,null,null,null,null,null,null,"2024-12-03",3,""]
[null,null,null,null,null,null,null,null,null,null,null,null,null,null,null,null,null,null,null,null,"2024-12-04",4,""]
[null,null,null,null,null,null,null,null,null,null,null,null,null,null,null,null,null,null,null,null,"2024-12-05",5,""]
[null,null,null,null,null,null,null,null,null,null,null,null,null,null,null,null,null,null,null,null,"2024-12-06",6,""]
[null,null,null,null,null,null,null,null,null,null,null,null,null,null,null,null,null,null,null,null,"2024-12-07",7,""]
[null,null,null,null,null,null,null,null,null,null,null,null,null,null,null,null,null,null,null,null,"2024-12-08",1,""]
[null,null,null,null,null,null,null,null,null,null,null,null,null,null,null,null,null,null,null,null,"2024-12-09",2,""]
[null,null,null,null,null,null,null,null,null,null,null,null,null,null,null,null,null,null,null,null,"2024-12-10",3,""]
[null,null,null,null,null,null,null,null,null,null,null,null,null,null,null,null,null,null,null,null,"2024-12-11",4,""]
[null,null,null,null,null,null,null,null,null,null,null,null,null,null,null,null,null,null,null,null,{"$f":"+U686+1","v":"2024-12-12"},5,""]
[null,null,null,null,null,null,null,null,null,null,null,null,null,null,null,null,null,null,null,null,"2024-12-13",6,""]
[null,null,null,null,null,null,null,null,null,null,null,null,null,null,null,null,null,null,null,null,"2024-12-14",7,""]
[null,null,null,null,null,null,null,null,null,null,null,null,null,null,null,null,null,null,null,null,"2024-12-15",1,""]
[null,null,null,null,null,null,null,null,null,null,null,null,null,null,null,null,null,null,null,null,"2024-12-16",2,""]
[null,null,null,null,null,null,null,null,null,null,null,null,null,null,null,null,null,null,null,null,"2024-12-17",3,""]
[null,null,null,null,null,null,null,null,null,null,null,null,null,null,null,null,null,null,null,null,"2024-12-18",4,""]
[null,null,null,null,null,null,null,null,null,null,null,null,null,null,null,null,null,null,null,null,"2024-12-19",5,""]
[null,null,null,null,null,null,null,null,null,null,null,null,null,null,null,null,null,null,null,null,"2024-12-20",6,""]
[null,null,null,null,null,null,null,null,null,null,null,null,null,null,null,null,null,null,null,null,"2024-12-21",7,""]
[null,null,null,null,null,null,null,null,null,null,null,null,null,null,null,null,null,null,null,null,"2024-12-22",1,""]
[null,null,null,null,null,null,null,null,null,null,null,null,null,null,null,null,null,null,null,null,"2024-12-23",2,""]
[null,null,null,null,null,null,null,null,null,null,null,null,null,null,null,null,null,null,null,null,"2024-12-24",3,""]
[null,null,null,null,null,null,null,null,null,null,null,null,null,null,null,null,null,null,null,null,"2024-12-25",4,""]
[null,null,null,null,null,null,null,null,null,null,null,null,null,null,null,null,null,null,null,null,"2024-12-26",5,""]
[null,null,null,null,null,null,null,null,null,null,null,null,null,null,null,null,null,null,null,null,"2024-12-27",6,""]
[null,null,null,null,null,null,null,null,null,null,null,null,null,null,null,null,null,null,null,null,"2024-12-28",7,""]
[null,null,null,null,null,null,null,null,null,null,null,null,null,null,null,null,null,null,null,null,"2024-12-29",1,""]
[null,null,null,null,null,null,null,null,null,null,null,null,null,null,null,null,null,null,null,null,"2024-12-30",2,""]
[null,null,null,null,null,null,null,null,null,null,null,null,null,null,null,null,null,null,null,null,"2024-12-31",{"$f":"WEEKDAY(U706)","v":3},{"$f":"IFERROR(IF(V706=7,\"\",IF(V706=1,\"\",IF(AND(U706>VALUE($F$29),U706<VALUE($F$16)),U706,\"\"))),\"\")","v":""}]
[null,null,null,null,null,null,null,null,null,null,null,null,null,null,null,null,null,null,null,null,"2025-01-01",4,""]
[null,null,null,null,null,null,null,null,null,null,null,null,null,null,null,null,null,null,null,null,"2025-01-02",5,""]
[null,null,null,null,null,null,null,null,null,null,null,null,null,null,null,null,null,null,null,null,"2025-01-03",6,""]
[null,null,null,null,null,null,null,null,null,null,null,null,null,null,null,null,null,null,null,null,"2025-01-04",7,""]
[null,null,null,null,null,null,null,null,null,null,null,null,null,null,null,null,null,null,null,null,"2025-01-05",1,""]
[null,null,null,null,null,null,null,null,null,null,null,null,null,null,null,null,null,null,null,null,"2025-01-06",2,""]
[null,null,null,null,null,null,null,null,null,null,null,null,null,null,null,null,null,null,null,null,"2025-01-07",3,""]
[null,null,null,null,null,null,null,null,null,null,null,null,null,null,null,null,null,null,null,null,"2025-01-08",4,""]
[null,null,null,null,null,null,null,null,null,null,null,null,null,null,null,null,null,null,null,null,"2025-01-09",5,""]
[null,null,null,null,null,null,null,null,null,null,null,null,null,null,null,null,null,null,null,null,"2025-01-10",6,""]
[null,null,null,null,null,null,null,null,null,null,null,null,null,null,null,null,null,null,null,null,"2025-01-11",7,""]
[null,null,null,null,null,null,null,null,null,null,null,null,null,null,null,null,null,null,null,null,"2025-01-12",1,""]
[null,null,null,null,null,null,null,null,null,null,null,null,null,null,null,null,null,null,null,null,"2025-01-13",2,""]
[null,null,null,null,null,null,null,null,null,null,null,null,null,null,null,null,null,null,null,null,"2025-01-14",3,""]
[null,null,null,null,null,null,null,null,null,null,null,null,null,null,null,null,null,null,null,null,"2025-01-15",4,""]
[null,null,null,null,null,null,null,null,null,null,null,null,null,null,null,null,null,null,null,null,"2025-01-16",5,""]
[null,null,null,null,null,null,null,null,null,null,null,null,null,null,null,null,null,null,null,null,"2025-01-17",6,""]
[null,null,null,null,null,null,null,null,null,null,null,null,null,null,null,null,null,null,null,null,"2025-01-18",7,""]
[null,null,null,null,null,null,null,null,null,null,null,null,null,null,null,null,null,null,null,null,"2025-01-19",1,""]
[null,null,null,null,null,null,null,null,null,null,null,null,null,null,null,null,null,null,null,null,"2025-01-20",2,""]
[null,null,null,null,null,null,null,null,null,null,null,null,null,null,null,null,null,null,null,null,"2025-01-21",3,""]
[null,null,null,null,null,null,null,null,null,null,null,null,null,null,null,null,null,null,null,null,"2025-01-22",4,""]
[null,null,null,null,null,null,null,null,null,null,null,null,null,null,null,null,null,null,null,null,"2025-01-23",5,""]
[null,null,null,null,null,null,null,null,null,null,null,null,null,null,null,null,null,null,null,null,"2025-01-24",6,""]

{"sheet":"Agenda Items","index":2,"n_rows":24,"n_cols":32,"rows_kept":24,"cut":false,"hidden":false,"merged":[[8,4,8,6],[10,4,11,4],[18,4,19,4],[21,4,22,4]]}
[null,null,null,null,null,null,null,null,0,null,null,null,null,"Alteration of date of payment of interest or redemption amount","Alteration of form or nature or rights of securities","Bonus","Buyback","Dividend","Financial results","Fund raising","Voluntary delisting","Amalgamation","Consolidation of shares","Conversions of FCD","Dividend on preference shares","ESOP","Increase in authorised capital","Reduction of capital","Scheme of arrangement","Status of project","Stock split","Other business"]
[null,null,null,null,null,null,null,null,0,null,null,null,null,"Audited","Unaudited"]
[null,null,null,null,null,null,null,null,0,null,null,null,null,"Standalone","Consolidated","Standalone And Consolidated"]
[null,null,null,null,null,null,null,null,null,null,null,null,null,"Quarterly","Half Yearly","Yearly"]
[null,null,null,null,null,"2012",2013,2014,2015,2016,2017,2018,2019,2020,2021,2022,2023,2024,2025,2026,2027,2028,2029,2030,2031,2032]
[null,null,null,null,null,null,null,null,null,null,null,null,null,"March","June","September","December"]
[null,null,null,null,null,null,null,null,null,null,null,null,null,"American Depository Receipts or Global Depository Receipts or Foreign Currency Convertible Bonds","Debt issue","Further public offer","Preferential issue","Qualified institutions placement","Rights issue","Any other method","To be ascertained"]
[null,null,null,null,null,null,null,null,null,null,null,null,null,"Final","Interim","Other"]
[null,null,null,null,"Agenda Details"]
[null,null,null,null,null,null,null,null,null,null,null,"Agenda1"]
[null,null,null,null,"Agenda*"]
[null,null,null,null,null,1,"Financial results",null,null,null,null,"Agenda"]
[null,null,null,null,"Whether results are audited or unaudited",null,"Unaudited",null,null,null,null,"WhetherResultsAreAuditedOrUnaudited"]
[null,null,null,null,"Nature of report standalone or consolidated",null,"Standalone",null,null,null,null,"NatureOfReportStandaloneConsolidated"]
[null,null,null,null,"Period end Type",null,"Quarterly",null,null,null,null,"ReportingPeriodType"]
[null,null,null,null,"Period up to (Month)",null,"December",null,null,null,null,"MonthOfPeriodEnded"]
[null,null,null,null,"Period up to (Year)",null,2023,null,null,null,null,"YearOfPeriodEnded"]
[null,null,null,null,null,null,null,null,null,null,null,"ModeOfRaisingFunds"]
[null,null,null,null,"Mode of raising Funds"]
[null,null,null,null,null,1,null,null,null,null,null,"ModeOfRaisingFunds"]
[null,null,null,null,null,null,null,null,null,null,null,"TypeOfDividend"]
[null,null,null,null,"Type of Dividend"]
[null,null,null,null,null,1,null,null,null,null,null,"TypeOfDividend"]
[null,null,null,null,"Remarks (website dissemination)",null,"NA",null,null,null,null,"RemarksWebsiteDissemination"]

{"sheet":"Taxonomy","index":3,"n_rows":68,"n_cols":6,"rows_kept":68,"cut":false,"hidden":true,"merged":[]}
[null,"Lable name",null,null,"Validation msg"]
["NSESymbol","NSE Symbol*","xbrli:stringItemType","instant","1) This is mandatory field.\n2) space is not allowed.\n3) Please enter valid NSE symbol. "]
["NameOfTheCompany","Name of the Company*","xbrli:stringItemType","instant","This is a mandatory field."]
["ScripCode","BSE Scrip Code*","in-capmkt-types:ScripCode","instant","1) This is a mandatory field.\n2) Please enter 6 digit Scrip Code."]
["MSEISymbol","MSEI Symbol*","xbrli:stringItemType","instant","1) This is mandatory field.\n2) Space is not allowed.\n3) Maximum 20 Character allowed.\n4) Please enter valid MSEI symbol. "]
["WhetherCompanyIsSME","Whether Company is SME*","xbrli:booleanItemType","duration","1) This is a mandatory field.\n2) Please select value from drop down."]
["ISIN","ISIN*","in-capmkt-types:ISINNumber","instant","1) This is a mandatory field.\n2) Please enter ISIN Number format."]
["TypeOfIntimation","Type of Intimation*","in-capmkt-types:IntimationType","duration","1) This is a mandatory field.\n2) Please select value from drop down."]
["DateOfProposedMeeting","Proposed Meeting Date","xbrli:dateItemType","duration","1) This is a mandatory field.\n2) Please enter date in DD-MM-YYYY format.\n3) Date should be today or future date"]
["DateOfOriginalMeeting","Original Meeting Date","xbrli:dateItemType","duration","1) This is a mandatory field.\n2) Please enter date in DD-MM-YYYY format.","1) This is a mandatory field.\n2) Please enter date in DD-MM-YYYY format.\n3) Date should be past date or before today"]
["WhetherTradingWindowIsClosed","Whether trading window is closed*","xbrli:booleanItemType","duration","1) This is a mandatory field.\n2) Please select value from drop down."]
["StartDateOfTradingWindow","Trading Window Start date","xbrli:dateItemType","duration","1) This is a mandatory field.\n2) Please enter date in DD-MM-YYYY format."]
["EndDateOfTradingWindow","Trading Window End date","xbrli:dateItemType","duration","1) This is a mandatory field.\n2) Please enter date in DD-MM-YYYY format."]
["ShortNotice","Short Notice","xbrli:stringItemType","instant","1) This is a mandatory field.\n2) Please enter date in DD-MM-YYYY format."]
[null,"Agenda*",null,null,"1) This is a mandatory field.\n2) Please select value from drop down.","1) This is a mandatory field.\n2) Please select value from drop down.\n3) Duplicate values are not allowed"]
[null,"Whether results are audited or unaudited",null,null,"1) This is a mandatory field.\n2) Please select value from drop down."]
[null,"Nature of report standalone or consolidated",null,null,"1) This is a mandatory field.\n2) Please select value from drop down."]
[null,"Period end Type",null,null,"1) This is a mandatory field.\n2) Please select value from drop down."]
[null,"Period up to (Month)",null,null,"1) This is a mandatory field.\n2) Please select value from drop down."]
[null,"Period up to (Year)",null,null,"1) This is a mandatory field.\n2) Please select value from drop down."]
[null,"Mode of raising Funds",null,null,"1) This is a mandatory field.\n2) Please select value from drop down.","1) This is a mandatory field.\n2) Please select value from drop down.\n3) Duplicate values are not allowed"]
[null,"Type of Dividend",null,null,"1) This is a mandatory field.\n2) Please select value from drop down.","1) This is a mandatory field.\n2) Please select value from drop down.\n3) Duplicate values are not allowed"]
["RemarksForExchangeNotForWebsiteDissemination","Remarks for Exchange (not for Website Dissemination)","xbrli:stringItemType","instant","1) This is a mandatory field.\n2) Maximum 5000 Character allow."]
["DateOfReport",null,"xbrli:dateItemType","instant"]
["Agenda1",null,"in-capmkt-types:TypeOfAgenda","duration"]
["Agenda2",null,"in-capmkt-types:TypeOfAgenda","duration"]
["Agenda3",null,"in-capmkt-types:TypeOfAgenda","duration"]
["Agenda4",null,"in-capmkt-types:TypeOfAgenda","duration"]
["Agenda5",null,"in-capmkt-types:TypeOfAgenda","duration"]
["Agenda6",null,"in-capmkt-types:TypeOfAgenda","duration"]
["Agenda7",null,"in-capmkt-types:TypeOfAgenda","duration"]
["Agenda8",null,"in-capmkt-types:TypeOfAgenda","duration"]
["Agenda9",null,"in-capmkt-types:TypeOfAgenda","duration"]
["Agenda10",null,"in-capmkt-types:TypeOfAgenda","duration"]
["Agenda11",null,"in-capmkt-types:TypeOfAgenda","duration"]
["Agenda12",null,"in-capmkt-types:TypeOfAgenda","duration"]
["Agenda13",null,"in-capmkt-types:TypeOfAgenda","duration"]
["Agenda14",null,"in-capmkt-types:TypeOfAgenda","duration"]
["Agenda15",null,"in-capmkt-types:TypeOfAgenda","duration"]
["Agenda16",null,"in-capmkt-types:TypeOfAgenda","duration"]
["Agenda17",null,"in-capmkt-types:TypeOfAgenda","duration"]
["Agenda18",null,"in-capmkt-types:TypeOfAgenda","duration"]
["Agenda19",null,"in-capmkt-types:TypeOfAgenda","duration"]
["WhetherResultsAreAuditedOrUnaudited",null,"xbrli:stringItemType","duration"]
["NatureOfReportStandaloneConsolidated",null,"xbrli:stringItemType","duration"]
["ReportingPeriodType",null,"in-capmkt-types:TypeOfReportingPeriod","duration"]
["MonthOfPeriodEnded",null,"in-capmkt-types:LastMonthOfPeriod","duration"]
["YearOfPeriodEnded",null,"xbrli:integerItemType","instant"]
["ModeOfRaisingFunds",null,"in-capmkt-types:ModeOfFundRaised","duration"]
["Mode1OfRaisingFunds",null,"in-capmkt-types:ModeOfFundRaised","duration"]
["Mode2OfRaisingFunds",null,"in-capmkt-types:ModeOfFundRaised","duration"]
["Mode3OfRaisingFunds",null,"in-capmkt-types:ModeOfFundRaised","duration"]
["Mode4OfRaisingFunds",null,"in-capmkt-types:ModeOfFundRaised","duration"]
["Mode5OfRaisingFunds",null,"in-capmkt-types:ModeOfFundRaised","duration"]
["Mode6OfRaisingFunds",null,"in-capmkt-types:ModeOfFundRaised","duration"]
["Mode7OfRaisingFunds",null,"in-capmkt-types:ModeOfFundRaised","duration"]
["TypeOfDividend",null,"in-capmkt-types:TypeOfDividend","duration"]
["TypeOfDividend1",null,"in-capmkt-types:TypeOfDividend","duration"]
["TypeOfDividend2",null,"in-capmkt-types:TypeOfDividend","duration"]
["RemarksWebsiteDissemination",null,"xbrli:stringItemType","instant"]
["ShortNotice1",null,"xbrli:stringItemType","instant"]
["ShortNotice2",null,"xbrli:stringItemType","instant"]
["ShortNotice3",null,"xbrli:stringItemType","instant"]
["ShortNotice4",null,"xbrli:stringItemType","instant"]
["ShortNotice5",null,"xbrli:stringItemType","instant"]
["ShortNotice6",null,"xbrli:stringItemType","instant"]
["ShortNotice7",null,"xbrli:stringItemType","instant"]
[null,"Remarks (website dissemination)",null,null,null,"1) This is a mandatory field.\n2) Maximum 5000 Character allow."]

{"sheet":"TextBlock","index":4,"n_rows":0,"n_cols":0,"rows_kept":0,"cut":false,"hidden":true,"merged":[]}